Cogmind - Beta 15 @@@ ROGUE MODE // 2025.06.28 @ 01:27:20 Player: morimori Result: Destroyed by Enhanced Grunt with Neutron Cannon Performance ------------- Evolutions (9) 4500 Regions Visited (39) 7800 Robots Destroyed (491) 2455 Value Destroyed (25857) 25857 Prototype IDs (366) 7320 Alien Tech Used (10) 2000 Bonus (37716) 37716 TOTAL SCORE: 87648 Bonus ------- High Alert Combat Kills 1642 Follower Combat Kills 1631 Network Hubs Disabled 200 Met Data Miner 300 Met Zhirov 300 Met Warlord at Base 500 MAIN.C Attacked Warlord 500 Warlord Defense Kills 2374 Built Enhanced Grunts 300 Met R17 at Cetus 500 Used Core Reset Matrix 3000 Met R17 at Research 2000 Met Warlord at Research 2000 Scanned by Researcher 500 Destroyed MAIN.C Guards 500 Met MAIN.C 5000 Destroyed MAIN.C Shell 5000 Destroyed MAIN.C 10000 Met Architect 300 Destroyed A8 300 Destroyed A6 400 Destroyed A5 500 Destroyed A2 1000 Friendly Fire -1031 Cogmind --------- Core Integrity 0/1600 Matter 71/925 Energy 83/100 System Corruption 2% Temperature Cool (0) +ITN Movement Core (50) Location -1/Access_0 Parts ------- > --- POWER (2) -------- (None) > --- PROPULSION (6) --- (None) > --- UTILITY (13) ----- Experimental Matter Compressor Experimental Terrain Scan Processor Experimental Targeting Computer Experimental Core Analyzer > --- WEAPON (4) ------- (None) > --- INVENTORY (5) ---- Coolant Network Enhanced Nova Cannon Improved Potential Cannon Peak State ------------ > --- POWER ------------ Vortex Chain Reactor > --- PROPULSION ------- Experimental Biometal Heavy Treads Enhanced Armored Heavy Treads Enhanced Armored Heavy Treads > --- UTILITY ---------- Experimental Cooling System Huge Storage Unit Experimental Targeting Computer Experimental Core Analyzer Experimental Core Analyzer Experimental Armor Integrity Analyzer Quantum Capacitor Heavy Regenerative Plating Graphene Brace Experimental Hardlight Generator Experimental System Purifier > --- WEAPON ----------- Potential Cannon Cooled Nova Cannon Hypervelocity Multirail > --- INVENTORY -------- Vortex Chain Reactor Advanced Heavy Siege Treads Advanced Power Amplifier Experimental Coolant Injector Experimental Coolant Injector Experimental Matter Compressor Experimental Terrain Scanner Precision Energy Filter Precision Energy Filter Improved Particle Accelerator Experimental Transmission Jammer Advanced Phase Shifter Experimental Focal Shield Thermal Barrier AEGIS Remote Shield High-powered Transdimensional Reconstructor Core Regenerator Integrity Redistributor Improved Potential Cannon Gamma Bomb Array Enhanced Gamma Bomb Array [Rating: 251] Favorites ----------- Power Vortex Chain Reactor Engine Heavy Ion Engine Power Core Light Fission Core Reactor Vortex Chain Reactor Propulsion Aerolev Unit Treads Enhanced Armored Heavy Treads Leg Enhanced Biometal Leg Wheel Wheel Hover Unit Aerolev Unit Utility Huge Storage Unit Device Graphene Brace Storage Huge Storage Unit Processor Experimental Terrain Scan Processor Hackware Improved Hacking Suite Protection Experimental Utility Shielding Weapon Gamma Bomb Array Energy Gun EM Shotgun Energy Cannon Cooled Nova Cannon Ballistic Gun Hypervelocity Multirail Ballistic Cannon Flak Cannon Launcher Gamma Bomb Array Special Weapon RU-N14's Throwing Claymores v3 Impact Weapon Power Maul Slashing Weapon Chainsword Build | -11 -10 -10 -9 -9 -8 -7 -7 -7 -7 -7 -7 -6 -6 -6 -6 -6 -6 -5 -5 -5 -5 -5 -5 -4 -4 -4 -4 -4 -4 -4 -3 -3 -3 -2 -2 -2 -1 -1 -1 ------- Run | Yrd Mat Min Mat Min Mat Fac Was Fac Low Low Dat Pro Fac Ext Cet Arc Hub Fac Was Fac Upp Upp Zhi Pro Fac Was Fac Upp Upp War Pro Res Tes Res Qua Sec Acc Com Ac0 Slots Evolved 18 | . . . 2 . 2 2 . . . . . . 2 . . . . 2 . . . . . . 2 . . . . . . 2 . 2 . . 2 . . Power 1 | . . . . . . . . . . . . . . . . . . . . . . . . . . . . . . . . 1 . . . . . . . Propulsion 4 | . . . . . 2 1 . . . . . . . . . . . 1 . . . . . . . . . . . . . . . . . . . . . Utility 11 | . . . 2 . . 1 . . . . . . 2 . . . . 1 . . . . . . 2 . . . . . . 1 . . . . 2 . . Weapon 2 | . . . . . . . . . . . . . . . . . . . . . . . . . . . . . . . . . . 2 . . . . . Parts Attached 307 | 8 6 6 34 1 33 5 . 5 2 4 . 5 4 7 2 5 4 6 1 11 2 4 6 3 17 2 13 2 4 13 2 13 12 15 15 4 1 23 7 Power 20 | 1 1 . 4 . 3 . . . . 1 . . . 1 . . . . . 1 1 . 1 . . . . . . . . 4 . . . . . 2 . Engine 10 | 1 1 . 4 . 3 . . . . 1 . . . . . . . . . . . . . . . . . . . . . . . . . . . . . Core 3 | . . . . . . . . . . . . . . 1 . . . . . 1 1 . . . . . . . . . . . . . . . . . . Reactor 7 | . . . . . . . . . . . . . . . . . . . . . . . 1 . . . . . . . . 4 . . . . . 2 . Propulsion 78 | 2 2 1 7 . 13 1 . . . 1 . . . 2 . 4 3 1 . 7 . . 4 . . 2 . . 1 10 1 2 3 6 1 . . 4 . Treads 9 | . . . . . . . . . . . . . . . . . . . . . . . . . . . . . 1 . . . . 3 1 . . 4 . Leg 20 | . . . . . . . . . . . . . . 1 . . . . . . . . . . . . . . . 10 1 2 3 3 . . . . . Wheel 20 | 2 2 1 7 . 8 . . . . . . . . . . . . . . . . . . . . . . . . . . . . . . . . . . Hover 29 | . . . . . 5 1 . . . 1 . . . 1 . 4 3 1 . 7 . . 4 . . 2 . . . . . . . . . . . . . Flight . | . . . . . . . . . . . . . . . . . . . . . . . . . . . . . . . . . . . . . . . . Utility 135 | 3 2 2 10 1 12 1 . 5 . 1 . 3 4 2 1 . . 4 . 1 . 1 1 1 13 . 9 2 1 1 1 6 4 6 14 4 . 15 4 Device 64 | 2 1 2 4 . 4 1 . 3 . . . 2 1 . . . . 3 . . . . 1 . 1 . 3 1 1 . 1 3 2 5 11 3 . 8 1 Storage 8 | 1 1 . 1 . 2 . . . . . . . . . . . . . . . . . . 1 . . . . . . . . . . . . . 1 1 Processor 14 | . . . . . 1 . . . . . . . 1 . . . . . . . . 1 . . 2 . 1 1 . . . 1 . . . 1 . 4 1 Hackware 26 | . . . . . 1 . . 1 . . . . 2 . . . . 1 . 1 . . . . 9 . 4 . . 1 . 1 2 . 3 . . . . Protection 23 | . . . 5 1 4 . . 1 . 1 . 1 . 2 1 . . . . . . . . . 1 . 1 . . . . 1 . 1 . . . 2 1 Artifact . | . . . . . . . . . . . . . . . . . . . . . . . . . . . . . . . . . . . . . . . . Weapon 74 | 2 1 3 13 . 5 3 . . 2 1 . 2 . 2 1 1 1 1 1 2 1 3 . 2 4 . 4 . 2 2 . 1 5 3 . . 1 2 3 Energy Gun 9 | . . 1 6 . 2 . . . . . . . . . . . . . . . . . . . . . . . . . . . . . . . . . . Energy Cannon 16 | . . . 2 . . . . . . 1 . . . . . . . 1 1 . 1 . . . 1 . 2 . . 1 . . 3 2 . . . 1 . Ballistic Gun 16 | 2 1 1 . . 2 1 . . . . . . . . 1 1 1 . . 2 . 1 . 1 . . . . . . . . 1 1 . . . . . Ballistic Cannon 14 | . . . 5 . . . . . . . . 1 . 2 . . . . . . . . . . . . . . 2 . . . . . . . . 1 3 Launcher 11 | . . 1 . . 1 . . . 2 . . . . . . . . . . . . 1 . . 2 . 2 . . . . . 1 . . . 1 . . Special Weapon 3 | . . . . . . . . . . . . . . . . . . . . . . . . . 1 . . . . 1 . 1 . . . . . . . Impact Weapon 3 | . . . . . . 2 . . . . . . . . . . . . . . . 1 . . . . . . . . . . . . . . . . . Slashing Weapon 2 | . . . . . . . . . . . . 1 . . . . . . . . . . . 1 . . . . . . . . . . . . . . . Piercing Weapon . | . . . . . . . . . . . . . . . . . . . . . . . . . . . . . . . . . . . . . . . . Special Melee Weapon . | . . . . . . . . . . . . . . . . . . . . . . . . . . . . . . . . . . . . . . . . Unidentified Prototypes 23 | . . 1 3 . 2 . . . . . . 1 . . 2 . . . . 2 . . 3 . 1 . . . . 4 . . 3 . 1 . . . . Corrupted Parts 10 | . . . . . 2 . . . . . . . . . . . . . . . . . . . . . . . . . 1 . . . . 1 . 6 . System Corruption 64 | . . . . . 8 . . . . . . . . . . . . . . . . . . . . . . . . . 1 . . . . 4 . 51 . Parts Lost 72 | . . 3 15 . 6 . . . . 1 . . . 1 3 . 1 1 . 2 . . . . 1 . . . . 1 . 2 . . 2 . . 2 31 Power 4 | . . . 1 . . . . . . . . . . . . . . . . 1 . . . . . . . . . . . . . . . . . . 2 Propulsion 21 | . . 1 6 . 4 . . . . 1 . . . 1 2 . . 1 . . . . . . . . . . . 1 . . . . . . . . 4 Utility 30 | . . . 5 . 1 . . . . . . . . . . . 1 . . 1 . . . . 1 . . . . . . 1 . . 1 . . 2 17 Weapon 17 | . . 2 3 . 1 . . . . . . . . . 1 . . . . . . . . . . . . . . . . 1 . . 1 . . . 8 Highest Loss Streak 18 | . . 2 4 . 2 . . . . 1 . . . 1 2 . 1 1 . 1 . . . . 1 . . . . 1 . 2 . . 1 . . 1 18 To Critical Strikes 1 | . . . . . . . . . . . . . . . 1 . . . . . . . . . . . . . . . . . . . . . . . . Average Backups 19 | 3 16 19 23 24 23 14 15 14 15 14 14 14 13 14 15 14 15 13 16 19 20 20 19 20 19 19 18 21 19 21 23 22 20 19 20 21 20 19 16 Power 1 | 1 2 3 3 2 2 2 2 2 2 1 1 1 1 1 1 1 1 1 1 1 1 1 1 1 1 1 . . . . 1 . 1 . . . . . . Propulsion 1 | 1 4 5 5 7 5 1 1 1 1 . . . . . 1 1 1 . . . 2 2 1 1 1 1 . 1 1 . 2 2 1 . . . . . . Utility 10 | . 2 4 7 7 6 5 6 6 7 7 8 8 7 7 7 7 8 7 10 11 13 13 13 13 12 11 11 14 12 10 8 7 9 13 15 15 14 11 8 Weapon 5 | . 6 6 7 7 9 6 6 5 5 5 5 5 5 6 6 5 5 4 5 5 4 4 3 4 4 5 4 5 5 8 11 11 8 6 3 3 3 3 6 Tool/Special . | . . . . . . . . . . . . . . . . . . . . . . . . . . . . . . . . . . . . . . . . Unused Backups 104 | 1 4 . 20 . 17 1 . 4 . 1 . . . 1 . 6 . . . 2 . . 1 1 3 . 4 4 . 4 1 3 4 11 2 2 6 . 1 Power 4 | . . . 2 . 2 . . . . . . . . . . . . . . . . . . . . . . . . . . . . . . . . . . Propulsion 19 | 1 . . 1 . 7 1 . . . . . . . . . 1 . . . 1 . . . . . . 1 1 . 1 . 2 . . 2 . . . . Utility 44 | . . . 6 . 1 . . 3 . 1 . . . 1 . 1 . . . . . . 1 1 2 . 3 1 . 3 1 . 1 10 . 2 5 . 1 Weapon 37 | . 4 . 11 . 7 . . 1 . . . . . . . 4 . . . 1 . . . . 1 . . 2 . . . 1 3 1 . . 1 . . Tool/Special . | . . . . . . . . . . . . . . . . . . . . . . . . . . . . . . . . . . . . . . . . Average Slot Usage (%) 90 | . 100 99 97 100 96 99 100 99 100 100 90 99 99 99 91 94 96 88 94 91 94 93 89 99 99 100 98 100 100 99 99 95 98 89 75 74 75 74 72 Engine 2 | . 14 14 10 11 8 7 7 7 7 7 7 7 6 3 . . . . . . . . . . . . . . . . . . . . . . . . . Reactor 2 | . . . . . . . . . . . . . . . . . . . . . . . 3 4 5 5 5 5 5 5 4 6 8 4 4 3 4 3 3 Treads 4 | . . . . . . . . . . . . . . . . . . . . . . . . . . . . . . . . . . 4 13 13 12 12 11 Leg 4 | . . . . . . . . . . . . . . . . . . . . . . . . . . . . . . 20 31 27 27 16 . . . . . Wheel 4 | . 28 27 21 22 28 . . . . . . . . . . . . . . . . . . . . . . . . . . . . . . . . . . Hover 11 | . . . . . 4 38 38 38 38 38 38 37 32 32 25 27 29 24 29 29 29 29 33 35 31 31 30 31 31 10 . . . . . . . . . Device 17 | . 14 13 21 22 10 14 15 14 7 6 7 11 12 4 5 6 8 4 5 5 11 11 11 10 7 10 8 12 21 18 15 19 24 27 25 24 27 27 27 Storage 5 | . 14 14 11 11 9 7 7 7 7 7 7 7 6 6 6 6 6 5 5 5 5 5 5 5 5 5 4 5 5 5 5 4 4 4 4 4 4 3 4 Processor 7 | . . . . . 1 7 7 7 7 7 7 7 6 6 6 6 6 5 5 5 5 5 5 5 5 5 6 10 10 10 10 9 9 8 8 12 12 11 11 Hackware 8 | . . . . . 1 7 7 7 7 7 7 7 19 20 20 20 20 22 23 24 23 23 23 23 32 31 27 18 10 11 15 13 7 2 4 . . . . Protection 3 | . . . 9 11 13 . . . 7 7 7 2 . 7 6 6 3 4 5 3 . . . . . . 1 5 5 5 5 2 3 3 2 2 4 2 1 Energy Cannon 3 | . . . 1 . . . . . . 1 2 5 6 5 . . . . . . . . . . . 3 5 4 1 . . 3 4 4 7 8 7 4 5 Ballistic Gun 4 | . 28 21 1 . 5 9 7 7 6 5 . . . . 3 10 8 4 5 3 5 5 2 5 4 1 . . . . . . . 4 1 1 3 2 . Ballistic Cannon 1 | . . . 9 22 9 . . . . . . . . 1 . . . . . . . . . . . . . . . . . . . . . . . . 1 Launcher 2 | . . 6 . . . . . . . . . 1 . . 2 . . . . . . . . . . . . . 3 5 4 1 2 6 3 1 . 4 3 Slashing Weapon 1 | . . . . . . . . . . . . . 6 4 6 1 4 5 5 3 5 3 . 3 5 5 4 5 5 4 4 2 . . . . . . . Peak Build Rating 251 | 7 9 17 23 25 47 56 56 56 55 58 58 61 68 71 66 72 78 84 86 98 98 100 102 102 125 131 138 140 140 158 155 177 198 223 228 230 246 251 244 Average Rating 136 | 5 8 9 20 23 29 53 55 55 55 56 50 57 66 65 62 65 75 78 85 88 96 96 94 101 114 126 128 138 139 149 150 166 185 215 219 223 241 240 229 On Entrance 99 | . 7 9 8 20 25 45 56 56 55 55 58 58 58 68 66 57 72 68 84 86 97 96 94 101 102 122 127 136 140 140 148 141 175 198 223 224 230 242 233 Naked Turns . | . . . . . . . . . . . . . . . . . . . . . . . . . . . . . . . . . . . . . . . . Heaviest Build 226 | 14 50 63 111 106 113 38 37 38 41 44 44 47 43 57 42 43 41 44 59 69 57 67 62 61 74 71 80 107 72 119 117 160 168 217 226 224 220 222 214 Greatest Support 250 | 32 32 32 32 24 44 40 40 40 40 44 44 44 44 44 40 43 49 59 59 72 56 56 60 60 87 68 86 86 82 176 176 176 184 240 240 240 240 245 250 Greatest Overweight (x) 10 | . 1 3 10 4 4 . . . 1 1 . 1 . 1 1 1 . . . 1 1 1 1 1 1 1 1 1 1 1 . . . 1 1 . . 1 2 Average Overweight (x) . | . . 1 3 4 2 . . . . . . . . . . . . . . . . . . . . . . . . . . . . . . . . . . Largest Inventory Capacity 25 | 8 20 20 25 25 25 15 15 15 15 15 15 15 15 15 15 15 15 15 20 20 20 20 20 25 20 20 20 25 20 25 25 25 25 25 25 25 25 25 25 Average Capacity 22 | 7 19 20 24 25 23 15 15 15 15 15 15 15 15 15 15 15 15 15 19 20 20 20 20 20 20 20 19 23 20 24 25 25 25 25 25 25 25 24 24 Most Carried 25 | 6 20 20 25 25 25 15 15 15 15 15 15 15 15 15 15 15 15 15 18 20 20 20 20 20 20 20 20 25 20 25 25 25 25 25 25 25 25 25 25 Average Carried 21 | 3 16 19 23 24 23 14 14 14 15 14 15 14 14 14 14 14 15 13 16 19 20 20 19 20 19 19 19 22 20 23 24 24 24 24 24 24 23 23 21 Final Capacity 25 | 8 20 20 25 25 15 15 15 15 15 15 15 15 15 15 15 15 15 15 20 20 20 20 20 20 20 20 20 20 20 25 25 25 25 25 25 25 25 25 5 Final Carried 25 | 6 20 20 22 25 14 15 15 15 15 15 15 15 15 15 15 15 15 15 18 20 20 20 20 20 20 20 20 20 20 25 25 25 25 25 25 25 23 25 5 Class Distribution -------------------- 18% | Mutant 17% | Hacker-Mutant 10% | Alien-Bomber 8% | Machinist-Skirmisher 6% | Scavenger-Mutant 5% | Machinist-Assassin 4% | Alien-Gunner 3% | Machinist-Tank 3% | Wizard-Sprinter 3% | Hacker-Assassin 3% | Scavenger-Gunner Dominant Class ---------------- Mutant | -10/Materials Mutant | -10/Mines Scavenger-Mutant | -9/Materials Mutant | -9/Mines Scavenger-Mutant | -8/Materials Mutant | -7/Factory Mutant | -7/Waste Mutant | -7/Factory Mutant | -7/Lower Caves Mutant | -7/Lower Caves Mutant | -7/Data Miner Mutant | -6/Proximity Caves Hacker-Mutant | -6/Factory Hacker-Mutant | -6/Extension Commander-Mutant | -6/Cetus Hacker-Mutant | -6/Archives Hacker-Mutant | -6/Hub_04(d) Hacker-Mutant | -5/Factory Hacker-Mutant | -5/Waste Hacker-Mutant | -5/Factory Hacker-Mutant | -5/Upper Caves Hacker-Mutant | -5/Upper Caves Hacker-Mutant | -5/Zhirov Hacker-Sprinter | -4/Proximity Caves Wizard-Sprinter | -4/Factory Wizard-Mutant | -4/Waste Wizard-Mutant | -4/Factory Hacker-Assassin | -4/Upper Caves Machinist-Scout | -4/Upper Caves Machinist-Assassin | -4/Warlord Machinist-Assassin | -3/Proximity Caves Hacker-Assassin | -3/Research Machinist-Skirmisher | -3/Testing Machinist-Skirmisher | -2/Research Tank | -2/Quarantine Alien-Bomber | -2/Section 7 Alien-Bomber | -1/Access Alien-Gunner | -1/Command Alien-Bomber | -1/Access_0 Resources | -11 -10 -10 -9 -9 -8 -7 -7 -7 -7 -7 -7 -6 -6 -6 -6 -6 -6 -5 -5 -5 -5 -5 -5 -4 -4 -4 -4 -4 -4 -4 -3 -3 -3 -2 -2 -2 -1 -1 -1 ----------- Run | Yrd Mat Min Mat Min Mat Fac Was Fac Low Low Dat Pro Fac Ext Cet Arc Hub Fac Was Fac Upp Upp Zhi Pro Fac Was Fac Upp Upp War Pro Res Tes Res Qua Sec Acc Com Ac0 Matter Collected 17553 | 311 299 276 924 48 1535 206 . 123 142 297 . 283 70 416 120 496 124 49 220 732 154 169 258 138 574 96 505 347 227 1140 10 615 1120 1059 842 963 682 1271 712 Remotely 155 | 69 86 . . . . . . . . . . . . . . . . . . . . . . . . . . . . . . . . . . . . . . Salvage Created 26301 | 114 384 161 1427 . 1749 268 . 222 127 423 . 703 191 308 366 433 641 49 494 914 333 75 258 . 844 321 826 137 311 709 . 510 1281 2090 1140 2021 2503 1986 1982 Parts 1141 | 10 16 10 95 . 87 8 . . 3 8 . 17 7 11 12 26 28 5 9 45 3 5 2 . 29 3 49 4 9 32 . 34 55 83 79 78 132 62 85 Haulers Intercepted 16 | . 1 . 2 . 5 1 . 1 . . . 1 1 . . . 1 . . . . . . . . . . . . . . . . . . 3 . . . Recyclers Shooed 8 | . . . . . 3 . . . . . . . . . . . . . . . . . . . . . 2 . . . . . 1 . . . 1 1 . Parts Field Recycled . | . . . . . . . . . . . . . . . . . . . . . . . . . . . . . . . . . . . . . . . . Retrieved Matter . | . . . . . . . . . . . . . . . . . . . . . . . . . . . . . . . . . . . . . . . . Parts Self-Destructed 18 | . . . . . . . . . 1 2 . 3 . . . . . . . . 2 1 2 . . . . 2 5 . . . . . . . . . . Prevented 10 | . . . . . . . . . 2 1 . 7 . . . . . . . . . . . . . . . . . . . . . . . . . . . Kills | -11 -10 -10 -9 -9 -8 -7 -7 -7 -7 -7 -7 -6 -6 -6 -6 -6 -6 -5 -5 -5 -5 -5 -5 -4 -4 -4 -4 -4 -4 -4 -3 -3 -3 -2 -2 -2 -1 -1 -1 ------- Run | Yrd Mat Min Mat Min Mat Fac Was Fac Low Low Dat Pro Fac Ext Cet Arc Hub Fac Was Fac Upp Upp Zhi Pro Fac Was Fac Upp Upp War Pro Res Tes Res Qua Sec Acc Com Ac0 Combat Hostiles Destroyed 322 | . 3 6 36 . 28 . . . 1 4 . 6 . 5 4 1 1 . . 10 . 4 . . 5 1 12 6 5 21 . 7 16 26 11 28 30 14 31 Melee 1 | . . . . . . . . . . . . . . . . . . . . 1 . . . . . . . . . . . . . . . . . . . Guns 65 | . 3 5 19 . 3 . . . . . . . . . . 1 1 . . 5 . . . . . . . . . . . . . 3 2 1 10 6 6 Cannons 79 | . . . 17 . 20 . . . . . . 1 . 3 . . . . . . . . . . 1 1 2 . . . . . 4 . 1 15 . 3 11 AOE 112 | . . 1 . . 3 . . . 1 4 . 3 . 1 1 . . . . 3 . 4 . . 3 . 9 6 5 21 . 7 4 6 1 6 16 3 4 Classes Destroyed 28 | 2 4 4 3 . 2 . . . . . . 1 . 1 . . 1 . . . . . . . 1 1 . . . 4 . 1 1 . 1 1 . . . Worker 38 | . . . 4 . 7 1 . . . . . . . . . . 7 . . 2 . . . . 1 . 2 . . . . 1 . . 3 1 5 4 . Builder 31 | . . 1 2 . 3 . . . . . . . . . . . 2 1 . 4 . . . . 1 . 7 . . . . 3 1 . . . 6 . . Tunneler 6 | 4 . . . . . . . . . . . . . . . . . 1 . . . . . . . . 1 . . . . . . . . . . . . Hauler 16 | . 1 . 2 . 5 1 . 1 . . . 1 1 . . . 1 . . . . . . . . . . . . . . . . . . 3 . . . Recycler 26 | 1 2 . . . 4 2 . 2 . . . . 1 . . . . . . 1 . . . . 4 . 1 . . . . 2 1 . . 1 3 1 . Mechanic 1 | . . . . . . . . . . . . . . . . . . . . . . . . . . . . . . 1 . . . . . . . . . Operator 18 | . 1 . 2 . 2 1 . 1 . . . . . . . 9 . . . 1 . . . . . . . . . . . . . . . . 1 . . Drone 14 | . . 14 . . . . . . . . . . . . . . . . . . . . . . . . . . . . . . . . . . . . . Watcher 23 | . 1 . 4 . 2 . . . . . . . . 1 2 . 1 . . 1 . . . . 2 . 1 . . . . . 1 1 1 3 2 . . Swarmer 70 | . . 5 10 . . . . . . 3 . . . . . . . . . . . 4 . . . . 9 6 5 2 . 3 . 4 . . 17 2 . Cutter 3 | . . . . . . . . . . . . . . . . . . . . . . . . . 3 . . . . . . . . . . . . . . Saboteur 4 | . . . . . . . . . . . . . . . . . . . . . . . . . . . . . . 4 . . . . . . . . . Grunt 86 | . 3 . 17 . 21 . . . 1 . . 5 . 1 . . 1 . . 5 . . . . . . 1 . . 9 . . 9 6 2 3 1 1 . Brawler 2 | . . . . . . . . . . . . . . . . . . . . . . . . . . . . . . 2 . . . . . . . . . Duelist 3 | . . . 1 . 1 . . . . . . . . . . . . . . . . . . . . . . . . 1 . . . . . . . . . Protector 1 | . . . . . . . . . . . . . . . . . . . . . . . . . . . . . . 1 . . . . . . . . . Researcher 2 | . . . . . . . . . . . . . . . . . . . . . . . . . . . . . . . . . . . 2 . . . . Sentry 22 | . . . 8 . 5 . . . . . . . . 3 . 1 . . . . . . . . . . . . . . . . . . . 4 . 1 . Demolisher 4 | . . 1 . . . . . . . . . . . . . . . . . . . . . . . . . . . . . 1 . 2 . . . . . Hunter 11 | . . . . . . . . . . . . . . . . . . . . 1 . . . . . . 2 . . . . . . 2 . . 6 . . Programmer 35 | . . . . . . . . . . . . 1 . . . . . . . 4 . . . . 2 . . . . 1 . 2 4 1 2 10 4 4 . Heavy 1 | . . . . . 1 . . . . . . . . . . . . . . . . . . . . . . . . . . . . . . . . . . Q-Series 8 | . . . . . . . . . . . . . . . . . . . . . . . . . . . . . . . . . . . . 6 2 . . Compactor 1 | . . . . . . . . . . . . . . . . . . . . . . . . . . 1 . . . . . . . . . . . . . Cetus Guard 4 | . . . . . . . . . . . . . . . 4 . . . . . . . . . . . . . . . . . . . . . . . . Quarantine Guard 7 | . . . . . . . . . . . . . . . . . . . . . . . . . . . . . . . . . . . 7 . . . . S7 Guard 1 | . . . . . . . . . . . . . . . . . . . . . . . . . . . . . . . . . . . . 1 . . . M Guard 2 | . . . . . . . . . . . . . . . . . . . . . . . . . . . . . . . . . . . . . . 2 . Enhanced Grunt 17 | . . . . . . . . . . . . . . . . . 2 . . . . . . . . . . . . . . . . . . . . . 15 Enhanced Sentry 4 | . . . . . . . . . . . . . . . . . . . . . . . . . . . . . . . . . . . . . . . 4 Enhanced Hunter 8 | . . . . . . . . . . . . . . . . . . . . . . . . . . . . . . . . . . . . . . . 8 Combat Programmer 2 | . . . . . . . . . . . . . . . . . . . . . . . . . . . . . . . . . . . . . . 2 . Striker 9 | . . . . . . . . . . . . . . . . . . . . . . . . . . . . . . . . 1 2 6 . . . . . Executioner 8 | . . . . . . . . . . . . . . . . . . . . . . . . . . . . . . 1 . . . 5 . 2 . . . Alpha 7 3 | . . . . . . . . . . . . . . . . . . . . . . . . . . . . . . . . . 1 . . 2 . . . Zionite 1 | . . . . . 1 . . . . . . . . . . . . . . . . . . . . . . . . . . . . . . . . . . Wasp 1 | . . . . . . . . . . . . . . . . . . . . . . . . . . 1 . . . . . . . . . . . . . Thug 1 | . . . . . . . . . . . . . . . . 1 . . . . . . . . . . . . . . . . . . . . . . . Savage 3 | . . . . . . . . . . . . . . . . . 2 . . . . 1 . . . . . . . . . . . . . . . . . Butcher 1 | . . . . . . . . . . 1 . . . . . . . . . . . . . . . . . . . . . . . . . . . . . Guerrilla 1 | . . . . . . . . . . . . . . 1 . . . . . . . . . . . . . . . . . . . . . . . . . Best Kill Streak 14 | 5 3 3 5 . 8 2 . 1 1 3 . 5 1 2 3 3 11 2 . 12 . 4 . . 6 1 8 4 5 6 . 7 8 7 3 4 14 5 8 Combat Bots Only 8 | . 2 3 5 . 5 . . . 1 3 . 4 . 2 2 1 1 . . 6 . 4 . . 3 1 4 4 5 6 . 4 8 7 2 3 8 4 8 Max Kills in Single Turn 7 | 1 1 4 2 . 2 1 . 1 1 2 . 2 1 1 1 1 7 1 . 2 . 3 . . 4 1 5 2 4 3 . 3 2 2 2 3 4 2 2 Gunslinging 1 | . . . 1 . . . . . . . . . . . . . . . . . . . . . . . . . . . . . . . . . . . . Exploded 4 | . . 1 . . 2 . . . 1 2 . 1 . 1 1 . . . . 1 . 3 . . 2 . 4 2 4 3 . 2 1 2 1 1 3 1 1 Melee 1 | . . . . . . . . . . . . . . . . . . . . 1 . . . . . . . . . . . . . . . . . . . Uniques/NPCs Destroyed 6 | . . . . . . . . . . . . . . . . . . . . . . . . . . . . . . . . . . . . . . 2 4 MAIN.C Shell (-1/Command) MAIN.C (-1/Command) A8 (-1/Access_0) A6 (-1/Access_0) A2 (-1/Access_0) A5 (-1/Access_0) Combat | -11 -10 -10 -9 -9 -8 -7 -7 -7 -7 -7 -7 -6 -6 -6 -6 -6 -6 -5 -5 -5 -5 -5 -5 -4 -4 -4 -4 -4 -4 -4 -3 -3 -3 -2 -2 -2 -1 -1 -1 -------- Run | Yrd Mat Min Mat Min Mat Fac Was Fac Low Low Dat Pro Fac Ext Cet Arc Hub Fac Was Fac Upp Upp Zhi Pro Fac Was Fac Upp Upp War Pro Res Tes Res Qua Sec Acc Com Ac0 Hostile Shots Fired 2514 | . 23 48 211 . 113 . . 22 10 5 . 10 . 107 15 5 1 17 . 108 . 8 . . 40 . 80 7 3 67 24 29 75 83 125 129 187 204 758 Missed 833 | . 6 10 57 . 36 . . 15 9 3 . 4 . 41 8 . . 9 . 36 . 6 . . 23 . 42 4 2 27 9 11 23 31 41 33 40 41 266 Intercepted 79 | . . . . . . . . . . . . . . . . . . . . . . . . . . . . . . . . . . 2 1 12 61 3 . Hits 1681 | . 17 38 154 . 77 . . 7 1 2 . 6 . 66 7 5 1 8 . 72 . 2 . . 17 . 38 3 1 40 15 18 52 52 84 96 147 163 492 Melee 4 | . . . 1 . . . . . 1 . . . . . . . . . . . . . . . 1 . . . . . . 1 . . . . . . . Projectile 1677 | . 17 38 153 . 77 . . 7 . 2 . 6 . 66 7 5 1 8 . 72 . 2 . . 16 . 38 3 1 40 15 17 52 52 84 96 147 163 492 AOE 63 | . . 8 . . . . . . . . . . . . . . . . . . . . . . 1 . . . . . . 7 . 4 4 4 32 3 . Critical Strikes 94 | . 1 . 1 . 3 . . . . . . 1 . . 2 . . 1 . 9 . . . . 2 . 3 . . 2 . . 1 3 6 7 1 14 37 Actively Blocked 78 | . . . . . . . . . . . . . . . . . . . . 6 . . . . 2 . 2 . . 2 . . 1 3 6 7 1 14 34 Part Disruptions 13 | . . . . . . . . . . . . . . . . . . . . 1 1 . . . . . . . . . . . . . 1 . . 3 7 Actively Blocked 1 | . . . . . . . . . . . . . . . . . . . . . . . . . . . . . . . . . . . . . . . 1 Damage Taken 28893 | . 198 687 1629 . 1452 . . 85 66 88 . 99 62 619 185 111 136 115 . 1368 49 29 . . 436 67 620 32 17 792 241 960 992 1185 1309 938 825 2608 10893 Core 3988 | . 17 228 243 . 287 . . 26 . . . 20 . 101 27 23 47 20 . 269 . 17 . . 84 24 160 12 . 64 . 158 261 43 80 92 22 167 1496 Absorbed by Shields 7071 | . . . . . . . . . . . . . . 41 65 . . . . . . . . . . . . . . 139 . 52 389 448 468 472 480 1069 3448 Reduced by Siege Mode 838 | . . . . . . . . . . . . . . . . . . . . . . . . . . . . . . . . . . 173 . 9 51 456 149 Redirected to Shielding 780 | . . . . . . . . . . . . . . 22 . 15 . . . 65 . . . . . . 20 . 15 51 28 150 136 113 36 . . . 129 Ignored by Resistances 8410 | . . . . . . . . . . . . . . . . . . . . . . . . . . . 76 . . . 107 . 181 489 1121 909 998 2276 2253 Regen/Repaired (Parts) 6396 | . . . 100 . 90 11 . 83 . . . . 62 . . . . 192 . 97 . . . . 158 4 637 . . 111 . 756 319 17 . 2126 . 1572 61 Core Remaining (%) 61 | 100 . 2 . 39 47 . . . . . . 93 . . . . 76 . . . . . . 69 . . . . . . 66 . 67 . . 60 . . . Volleys Fired 1563 | 10 40 47 111 . 124 5 . 5 16 33 . 38 1 25 9 52 12 13 10 49 24 7 20 . 18 27 80 20 6 38 6 31 63 73 67 98 97 115 173 Largest 3 | 2 2 2 2 . 2 2 . 1 1 1 . 2 1 2 1 2 2 1 1 2 1 2 1 . 1 1 2 1 1 1 1 1 2 3 2 2 1 2 3 Hottest 350 | 40 40 45 136 . 110 53 . 28 36 85 . 122 85 133 36 60 68 35 35 75 33 85 40 . 110 110 195 85 85 80 110 110 200 310 230 350 200 200 300 Shots Fired 2087 | 20 80 78 214 1 232 9 . 6 17 34 . 41 1 37 9 104 16 13 10 87 25 13 20 . 18 27 93 20 6 38 6 31 81 102 74 101 97 117 209 Gun 858 | 20 80 74 133 . 93 9 . 6 12 18 . . . . . 104 16 13 10 77 25 8 20 . 1 3 . . . . . . 2 16 17 3 42 35 21 Cannon 929 | . . . 81 1 131 . . . . 8 . 28 1 32 . . . . . . . . . . 12 24 85 17 3 . 3 21 61 42 25 86 36 65 167 Launcher 300 | . . 4 . . 8 . . . 5 8 . 13 . 5 9 . . . . 10 . 5 . . 5 . 8 3 3 38 3 10 18 44 32 12 19 17 21 Special . | . . . . . . . . . . . . . . . . . . . . . . . . . . . . . . . . . . . . . . . . Kinetic 911 | 20 80 58 67 1 160 9 . 6 12 18 . 3 . 18 . 104 16 13 10 77 25 8 20 . 1 3 . . . . . . 2 16 17 3 42 35 67 Thermal 735 | . . . 124 . . . . . . 8 . 25 1 14 . . . . . . . . . . 12 24 85 17 3 . 3 21 38 42 25 85 36 51 121 Explosive 66 | . . 4 . . . . . . . 2 . . . . . . . . . . . 5 . . 3 . 4 3 3 33 3 6 . . . . . . . Electromagnetic 337 | . . 16 23 . 72 . . . 5 6 . 13 . 5 9 . . . . 10 . . . . 2 . 4 . . 5 . 4 18 44 32 12 19 17 21 Entropic 38 | . . . . . . . . . . . . . . . . . . . . . . . . . . . . . . . . . 23 . . 1 . 14 . Robot Hit Streak 63 | 8 10 5 11 5 10 4 . 2 6 6 . 14 . 5 8 9 3 . 10 11 11 3 14 . 2 7 19 3 4 7 . 6 6 20 18 11 29 63 26 Robot Miss Streak 10 | 2 5 5 7 1 10 1 . 2 1 3 . 3 . 7 . 3 2 . . 4 1 3 1 . 3 2 5 . . 3 . 2 7 8 5 3 4 4 3 Penetration Max 1 | . . . . . . . . . . . . . . 1 . . 1 . . 1 . . . . . . . . . . . . 1 1 1 . 1 1 1 Secondary Targets 9 | . . 1 6 . . . . . . . . . . . . 1 . . . 1 . . . . . . . . . . . . . . . . . . . Max Gunslinging Chain 1 | . . 1 1 . . . . . . . . . . . . 1 . . . 1 . . . . . . . . . . . . . . . . . . . Capacitor 147 | . . . . . . . . . . . . . . . . . . . . . . . . . . . . . . . . . . . . . . 31 116 Shots Hit Robots 1188 | 11 50 35 147 1 180 8 . 8 9 13 . 21 4 20 8 63 11 2 9 58 16 5 19 . 13 20 32 3 9 2 . 10 31 24 48 34 54 78 132 Core Hits 1328 | 6 14 37 93 2 170 4 . . 6 11 . 21 3 10 15 27 17 2 5 28 7 9 18 . 22 4 39 8 8 96 1 27 49 88 62 50 109 93 167 Critical Kills 57 | 1 2 . . . . 1 . . . . . . . 2 . 2 . . 3 1 . 1 . . . . . 1 . . . . . 3 5 2 17 11 5 Critical Parts Destroyed 68 | . . . . . 2 1 . . . 1 . . . 3 . 4 . . . 7 1 . 1 . . . . . . . . . . 5 7 . 16 13 7 Critical Strikes 176 | 1 2 . 3 . 2 2 . . . 1 . . 1 5 . 6 1 . 4 8 1 1 1 . . . . 1 . . . . 5 10 21 5 51 27 17 Burn 3 | . . . 3 . . . . . . . . . . . . . . . . . . . . . . . . . . . . . . . . . . . . Meltdown 3 | . . . . . . . . . . . . . . . . . . . . . . . . . . . . 1 . . . . . . . 1 . . 1 Destroy 159 | 1 2 . . . 2 . . . . 1 . . . 5 . 6 . . 4 8 1 1 1 . . . . . . . . . . 10 21 3 51 27 15 Blast 1 | . . . . . . . . . . . . . . . . . . . . . . . . . . . . . . . . . . . . . . . 1 Smash 2 | . . . . . . 2 . . . . . . . . . . . . . . . . . . . . . . . . . . . . . . . . . Sever 2 | . . . . . . . . . . . . . 1 . . . 1 . . . . . . . . . . . . . . . . . . . . . . Sunder 6 | . . . . . . . . . . . . . . . . . . . . . . . . . . . . . . . . . 5 . . 1 . . . Melee Attacks 255 | . . . . . . 15 . 35 5 6 . . 13 . . . 12 25 2 26 6 . . 2 75 . 12 . 10 4 1 6 . . . . . . . Impact 61 | . . . . . . 15 . 35 5 6 . . . . . . . . . . . . . . . . . . . . . . . . . . . . . Slashing 194 | . . . . . . . . . . . . . 13 . . . 12 25 2 26 6 . . 2 75 . 12 . 10 4 1 6 . . . . . . . Piercing . | . . . . . . . . . . . . . . . . . . . . . . . . . . . . . . . . . . . . . . . . Sneak Attacks 27 | . . . . . . 3 . 5 . . . . 2 . . . 3 2 . 2 . . . . 6 . 1 . . . . 3 . . . . . . . Combat Hostiles . | . . . . . . . . . . . . . . . . . . . . . . . . . . . . . . . . . . . . . . . . Follow-up Attacks . | . . . . . . . . . . . . . . . . . . . . . . . . . . . . . . . . . . . . . . . . Damage Inflicted 88313 | 133 560 1411 2541 31 3854 374 . 671 320 616 . 1402 228 748 1068 1378 1692 151 422 2212 383 673 158 . 1237 975 2958 673 985 6335 51 1487 3405 3694 1956 7720 4347 6530 24934 Guns 9769 | 133 560 672 1280 . 918 95 . 44 174 215 . . . . . 1378 146 . 272 1329 383 35 158 . 24 61 . . . . . . 41 164 242 38 603 468 336 Cannons 32047 | . . . 1236 31 2144 . . . . . . 586 . 487 . . . . . . . . . . 105 914 968 94 . . . . 1456 44 419 3999 820 4091 14653 Explosions 43038 | . . 739 25 . 792 . . . 146 401 . 816 . 261 1068 . 1221 . . 575 . 638 . . 582 . 1891 579 465 6335 51 1261 1908 3486 1295 3683 2924 1971 9925 Melee 3439 | . . . . . . 279 . 627 . . . . 228 . . . 325 151 150 308 . . . . 526 . 99 . 520 . . 226 . . . . . . . Ramming 20 | . . . . . . . . . . . . . . . . . . . . . . . . . . . . . . . . . . . . . . . 20 Kinetic 12393 | 133 560 332 827 31 2476 95 . 44 174 215 . 64 . 239 . 1378 146 . 272 1329 383 35 158 . 24 61 . . . . . . 41 164 242 38 603 468 1861 Thermal 41152 | . . 684 1441 . 207 . . . . . . 570 . 289 359 . . . . . . . . . 105 914 1170 94 . 42 . 95 173 553 453 6732 1764 3939 21568 Explosive 10195 | . . 55 . . . . . . . 283 . . . . . . . . . . . 638 . . 244 . 1197 579 465 5650 51 821 186 . . 26 . . . Electromagnetic 18180 | . . 340 273 . 1171 . . . 146 118 . 768 . 220 709 . 1221 . . 575 . . . . 338 . 492 . . 643 . 345 1652 2977 1261 849 1980 617 1485 Impact 906 | . . . . . . 279 . 627 . . . . . . . . . . . . . . . . . . . . . . . . . . . . . . . Slashing 2533 | . . . . . . . . . . . . . 228 . . . 325 151 150 308 . . . . 526 . 99 . 520 . . 226 . . . . . . . Piercing . | . . . . . . . . . . . . . . . . . . . . . . . . . . . . . . . . . . . . . . . . Entropic 2934 | . . . . . . . . . . . . . . . . . . . . . . . . . . . . . . . . . 1353 . . 75 . 1506 . Highest Corruption 22 | . 2 2 3 3 9 . 9 10 11 11 11 12 . . . . 2 . . 13 13 13 13 13 2 2 4 4 4 4 3 . 1 7 11 11 2 22 2 Average Corruption 5 | . 1 2 2 3 1 . 9 9 10 11 11 11 . . . . 1 . . 8 13 13 13 13 1 2 2 4 4 4 2 . 1 3 7 4 1 7 1 Corruption Purged 53 | . . . . . . . . . . . . . . . . . . . . . . . . . . . . . . . . . . . . . . 53 . Corruption Blocked . | . . . . . . . . . . . . . . . . . . . . . . . . . . . . . . . . . . . . . . . . Effects 430 | . 2 13 29 6 10 . 1 27 13 27 2 17 . . . . 2 . . 23 34 18 5 11 2 4 22 15 12 1 1 . 7 20 22 39 7 35 3 Message Errors 93 | . 1 2 2 1 3 . . 3 6 5 1 6 . . . . . . . 3 9 3 2 4 . 1 6 2 4 1 . . 1 5 4 7 1 10 . Matter Fused 112 | . . 5 8 2 2 . 1 6 2 7 1 2 . . . . 1 . . 8 7 2 . 3 2 2 7 6 2 . . . 3 5 7 8 3 9 1 Heat Flow Errors 48 | . . . 2 1 1 . . 5 1 1 . . . . . . 1 . . 3 6 2 . 1 . . 2 3 1 . . . 1 2 1 9 . 5 . Energy Discharges 53 | . 1 2 6 . 1 . . 8 1 4 . . . . . . . . . 4 5 4 . 2 . . . 3 2 . 1 . 1 2 2 3 1 . . Parts Rejected 5 | . . . . . . . . . . 1 . 1 . . . . . . . . . . . . . . . . . . . . . . 2 1 . . . Parts Fused 3 | . . . . . . . . . . . . . . . . . . . . . 1 . 1 . . . . . . . . . . . . . . 1 . Data Loss (minor) 46 | . . 1 3 1 1 . . 4 1 4 . 2 . . . . . . . 3 2 3 1 . . 1 1 . 3 . . . . 4 4 3 1 3 . Data Loss (major) 24 | . . 1 3 . . . . . 1 1 . 1 . . . . . . . 1 1 1 1 1 . . 1 1 . . . . . 1 1 3 1 3 1 Misfires 26 | . . 2 3 1 . . . 1 1 2 . 2 . . . . . . . . 2 3 . . . . 4 . . . . . . 1 1 1 . 2 . Alerts 7 | . . . 1 . . . . . . 1 . 1 . . . . . . . . . . . . . . . . . . . . 1 . . 3 . . . Misdirections 1 | . . . . . . . . . . . . 1 . . . . . . . . . . . . . . . . . . . . . . . . . . . Weapon Failures 12 | . . . 1 . 2 . . . . 1 . 1 . . . . . . . 1 1 . . . . . 1 . . . . . . . . 1 . 2 1 Overload Shots 3 | . . . . . . . . . . . . . . . . . . . . . . . . . . . . . . . . . . 1 1 1 . . . Overflow Damage 5141 | . . 79 . . 89 122 . 252 . . . 102 . 16 28 . 120 . 35 61 . 48 . . 99 . 123 84 183 34 . 77 339 14 . 1129 206 220 1681 Projectiles 3015 | . . . . . . . . . . . . 102 . 16 . . . . . . . . . . 15 . 73 26 . . . . 339 . . 901 117 207 1219 Explosions 1368 | . . 79 . . 89 . . . . . . . . . 28 . 81 . . 18 . 48 . . . . 50 58 . 34 . 77 . 14 . 228 89 13 462 Melee 758 | . . . . . . 122 . 252 . . . . . . . . 39 . 35 43 . . . . 84 . . . 183 . . . . . . . . . . Knockbacks 110 | . . . 30 . 72 . . 1 . . . . . 1 . . . . . . . . . . . . . . . . . . . . . . . . 6 Impact 2 | . . . . . . . . 1 . . . . . . . . . . . . . . . . . . . . . . . . . . . . . . 1 Kinetic 96 | . . . 26 . 64 . . . . . . . . 1 . . . . . . . . . . . . . . . . . . . . . . . . 5 Secondary 12 | . . . 4 . 8 . . . . . . . . . . . . . . . . . . . . . . . . . . . . . . . . . . Self-Inflicted Damage 1432 | . . 92 . . 32 . . . 26 . . . . . . . 94 . . . . . . . 55 . 58 . . 79 . 120 167 293 34 40 83 . 259 Shots 95 | . . 3 . . 2 . . . 1 . . . . . . . 1 . . . . . . . 4 . 1 . . 3 . 7 8 24 4 6 11 . 20 Rammed 3 | . . . . . . . . . . . . . . . . . . . . . . . . . . . . . . . . . . . . . . . 3 Targets Rammed 3 | . . . . . . . . . . . . . . . . . . . . . . . . . . . . . . . . . . . . . . . 3 Kicked . | . . . . . . . . . . . . . . . . . . . . . . . . . . . . . . . . . . . . . . . . Crushed . | . . . . . . . . . . . . . . . . . . . . . . . . . . . . . . . . . . . . . . . . Highest Temperature 678 | . 9 88 212 234 277 6 . 190 144 184 . 138 32 312 23 240 99 18 . 272 249 173 . 135 72 180 350 244 224 17 28 34 678 237 219 256 193 253 233 Average Temperature 85 | . 6 36 46 123 55 3 . 76 61 65 . 54 16 100 11 85 43 18 . 63 104 77 . 90 26 69 71 110 95 6 15 7 152 74 51 111 115 137 134 Received Heat Transfer 2066 | . 123 9 480 . 621 . . 6 . 9 . 18 . 169 9 9 . 72 . 45 . . . . 18 9 66 . . 44 . . 14 7 28 51 18 86 155 Effects 30 | . . . 2 . . . . . . . . . . 1 . . . . . . . . . . . . 4 . . . . . 12 . . 4 . 3 4 Shutdowns 4 | . . . . . . . . . . . . . . . . . . . . . . . . . . . . . . . . . 4 . . . . . . Energy Bleed 4 | . . . 1 . . . . . . . . . . 1 . . . . . . . . . . . . . . . . . . . . . 2 . . . Interference 13 | . . . 1 . . . . . . . . . . . . . . . . . . . . . . . 3 . . . . . . . . 2 . 3 4 Matter Decay 1 | . . . . . . . . . . . . . . . . . . . . . . . . . . . . . . . . . 1 . . . . . . Damage (minor) 1 | . . . . . . . . . . . . . . . . . . . . . . . . . . . 1 . . . . . . . . . . . . Damage (major) 6 | . . . . . . . . . . . . . . . . . . . . . . . . . . . . . . . . . 6 . . . . . . Damage (core) 1 | . . . . . . . . . . . . . . . . . . . . . . . . . . . . . . . . . 1 . . . . . . Siege Activations 25 | . . . . . . . . . . . . . . . . . . . . . . . . . . . . . . . . . . 2 1 5 4 3 10 Total Turns 369 | . . . . . . . . . . . . . . . . . . . . . . . . . . . . . . . . . . 45 13 36 63 115 97 Longest Duration 79 | . . . . . . . . . . . . . . . . . . . . . . . . . . . . . . . . . . 23 13 14 29 79 24 Martial Activations . | . . . . . . . . . . . . . . . . . . . . . . . . . . . . . . . . . . . . . . . . Shielding Activations . | . . . . . . . . . . . . . . . . . . . . . . . . . . . . . . . . . . . . . . . . Robots Disrupted 6 | . . . . . . . . . . . . . . . . . . . . . . . . . . . . . . 1 . . . . 2 . 1 . 2 Combat Hostiles 5 | . . . . . . . . . . . . . . . . . . . . . . . . . . . . . . . . . . . 2 . 1 . 2 Robots Corrupted 71 | . . . . . 2 . . 3 . . . 2 . 1 3 . 3 . . 1 . . . . 1 . 1 . . . . . 9 16 7 6 5 2 9 Combat Hostiles 61 | . . . . . 2 . . . . . . 2 . 1 3 . . . . 1 . . . . 1 . 1 . . . . . 8 16 7 4 4 2 9 Parts Fried 199 | . . . 4 . 4 3 . 5 . 1 . 5 . 2 3 . 6 . . 1 . . . . 8 . 6 . . . . 1 12 31 21 11 19 8 48 Impact Corruptions 9 | . . . . . . 2 . 7 . . . . . . . . . . . . . . . . . . . . . . . . . . . . . . . Robots Melted 4 | . . . . . . . . . . . . . . . . . . . . . . . . . . . . 1 . . . . . . . 2 . . 1 Combat Hostiles 4 | . . . . . . . . . . . . . . . . . . . . . . . . . . . . 1 . . . . . . . 2 . . 1 Parts Melted 13 | . . . 6 . . . . . . . . . . . . . . . . 1 . . . . . 1 . . . . . . . . . 3 1 . 1 Heat Transferred 21957 | . . 1150 3108 . 250 . . . . . . 592 . 346 250 . . . . . . . . . . . 903 111 . 50 . 200 74 487 396 4414 1387 1187 7052 Parts Sabotaged . | . . . . . . . . . . . . . . . . . . . . . . . . . . . . . . . . . . . . . . . . Parts Stolen . | . . . . . . . . . . . . . . . . . . . . . . . . . . . . . . . . . . . . . . . . Parts Stripped . | . . . . . . . . . . . . . . . . . . . . . . . . . . . . . . . . . . . . . . . . Power Chain Reactions 42 | . . 3 1 . 3 . . . . . . 1 . 1 3 . 1 . . 2 . . . . 1 . 4 . . 5 . 1 1 7 2 . 2 3 1 Alert | -11 -10 -10 -9 -9 -8 -7 -7 -7 -7 -7 -7 -6 -6 -6 -6 -6 -6 -5 -5 -5 -5 -5 -5 -4 -4 -4 -4 -4 -4 -4 -3 -3 -3 -2 -2 -2 -1 -1 -1 ------- Run | Yrd Mat Min Mat Min Mat Fac Was Fac Low Low Dat Pro Fac Ext Cet Arc Hub Fac Was Fac Upp Upp Zhi Pro Fac Was Fac Upp Upp War Pro Res Tes Res Qua Sec Acc Com Ac0 Maximum Alert Level 4 | . . . 2 . 2 . . . . . . . . 1 . . 3 2 . 1 . . . . 1 . 1 . . . . . 1 3 2 2 3 4 . Low Security (%) 58 | 100 100 100 22 100 52 100 100 100 . . . . 100 98 100 100 57 77 100 94 . . . . 95 100 90 . . . . 100 83 56 90 21 . . . Level 1 13 | . . . 61 . 25 . . . . . . . . 1 . . 9 20 . 5 . . . . 4 . 9 . . . . . 16 10 6 43 39 . . Level 2 9 | . . . 16 . 22 . . . . . . . . . . . . 2 . . . . . . . . . . . . . . . 23 2 35 47 4 . Level 3 8 | . . . . . . . . . . . . . . . . . 32 . . . . . . . . . . . . . . . . 8 . . 12 40 . Level 4 9 | . . . . . . . . . . . . . . . . . . . . . . . . . . . . . . . . . . . . . . 55 . Level 5 . | . . . . . . . . . . . . . . . . . . . . . . . . . . . . . . . . . . . . . . . . High Security . | . . . . . . . . . . . . . . . . . . . . . . . . . . . . . . . . . . . . . . . . Max Security . | . . . . . . . . . . . . . . . . . . . . . . . . . . . . . . . . . . . . . . . . Peak Influence 1012 | 10 62 96 480 172 473 196 10 28 . . . . 112 333 184 168 1012 471 64 211 . . . . 231 68 238 . . . . 160 381 775 427 647 912 859 . Initial 576 | . . . 21 172 4 196 10 . . . . . 112 . 184 53 34 471 64 . . . . . . 1 . . . . . . 59 213 427 69 385 576 . Average 167 | 2 5 18 259 94 238 105 3 4 . . . . 57 36 111 131 372 172 29 61 . . . . 38 19 65 . . . . 62 149 236 74 307 492 720 . Influence Increases 18780 | 25 165 216 1178 . 1043 167 . 159 195 80 . 345 84 761 346 331 1252 376 2 451 15 105 5 . 655 84 861 165 115 492 . 418 789 1041 571 1344 991 930 3023 Destroy 0b10 Robot/C 6460 | . 60 120 720 . 560 40 . . 20 60 . 120 . 360 160 80 220 . . 200 . 80 . . 100 . 240 120 100 420 . 140 320 520 260 560 600 280 . Destroy 0b10 Robot/NC 915 | 25 25 5 70 . 120 25 . 20 10 10 . 5 10 10 10 45 75 10 . 45 15 . 5 . 40 . 70 5 5 10 . 30 15 5 20 40 85 50 . Destroy Leader 1204 | . 24 20 182 . 146 12 . 2 . 10 . 10 2 34 . . 50 . . 52 . 10 . . 24 . 32 10 10 . . 30 42 122 82 142 114 42 . Allied During Kill 939 | . . . . . 4 . . . . . . . . 271 156 119 327 . . . . . . . . . . . . 62 . . . . . . . . . Successful Hack 668 | . 26 . 46 . 66 46 . 94 . . . . 4 5 . . 23 38 . 12 . . . . 101 . 59 . . . . 26 55 . 56 11 . . . Disable Machine 1395 | . . . 30 . 45 30 . . . . . . . 45 . 75 330 30 . 15 . . . . 30 . 45 . . . . 30 120 90 60 225 15 105 75 Anti-Garrison Action 50 | . . . . . . . . . . . . . . . . . . . . . . . . . . . . . . . . . . . . . . 50 . Destroy Structure 5439 | . . 26 10 . 27 14 . 28 . . . . 8 21 20 12 182 58 2 52 . . . . 210 84 250 . . . . 162 192 229 63 366 132 343 2948 Partial Spotted 195 | . . . . . . . . . . . . . 15 . . . 30 30 . 60 . . . . 60 . . . . . . . . . . . . . . Lose Combat Pursuer 1515 | . 30 45 120 . 75 . . 15 165 . . 210 45 15 . . 15 210 . 15 . 15 . . 90 . 165 30 . . . . 45 75 30 . 45 60 . Influence Decreases 16067 | 25 165 160 791 431 623 570 29 159 176 99 . 166 263 431 542 367 388 1153 187 257 209 105 5 . 651 88 786 218 63 359 207 312 514 661 1209 824 732 656 1486 Entered New Map 4297 | . . . 35 271 8 236 19 . . 4 . . 67 . 146 81 64 491 121 . 73 . . . . 3 . 29 5 74 207 . 47 168 334 54 258 326 1176 Time Decay 9210 | 25 165 140 615 160 555 294 10 159 176 95 . 166 196 406 206 246 254 342 66 235 136 105 5 . 378 85 344 189 58 188 . 292 467 493 555 620 474 310 . Lost Part 691 | . . 20 141 . 60 . . . . . . . . 10 30 . 10 10 . 20 . . . . 10 . . . . 10 . 20 . . 20 . . 20 310 Lost Ally 409 | . . . . . . 40 . . . . . . . . 160 40 60 10 . 2 . . . . . . 10 . . 87 . . . . . . . . . Purge Threat 1460 | . . . . . . . . . . . . . . 15 . . . 300 . . . . . . 263 . 432 . . . . . . . 300 150 . . . Squads Dispatched 102 | . 2 . 4 . 5 5 . 7 . . . . 2 . . . 3 5 . 6 . . . . 11 . 11 . . . . 6 7 2 8 10 6 2 . Investigation 30 | . 1 . 3 . . 1 . 4 . . . . 2 . . . . 3 . 2 . . . . 5 . 3 . . . . 2 2 1 1 . . . . Extermination 36 | . . . . . . 3 . 1 . . . . . . . . 2 2 . 2 . . . . 4 . 3 . . . . 1 3 . 2 7 4 2 . Reinforcement 30 | . 1 . 1 . 5 1 . 2 . . . . . . . . 1 . . 2 . . . . 1 . 5 . . . . 3 2 1 2 3 . . . Assault . | . . . . . . . . . . . . . . . . . . . . . . . . . . . . . . . . . . . . . . . . Garrison 6 | . . . . . . . . . . . . . . . . . . . . . . . . . 1 . . . . . . . . . 3 . 2 . . Intercept . | . . . . . . . . . . . . . . . . . . . . . . . . . . . . . . . . . . . . . . . . Searches Triggered . | . . . . . . . . . . . . . . . . . . . . . . . . . . . . . . . . . . . . . . . . Construction Impeded 7 | . . . . . 2 . . . . . . . . . . . . . . 1 . . . . . . 2 . . . . 1 1 . . . . . . Haulers Reinforced 6 | . . . . . . . . 2 . . . . . . . . 1 . . . . . . . . . . . . . . . . 1 . 2 . . . Active Scanning Responses . | . . . . . . . . . . . . . . . . . . . . . . . . . . . . . . . . . . . . . . . . Cargo Convoy Interrupts . | . . . . . . . . . . . . . . . . . . . . . . . . . . . . . . . . . . . . . . . . Stealth | -11 -10 -10 -9 -9 -8 -7 -7 -7 -7 -7 -7 -6 -6 -6 -6 -6 -6 -5 -5 -5 -5 -5 -5 -4 -4 -4 -4 -4 -4 -4 -3 -3 -3 -2 -2 -2 -1 -1 -1 --------- Run | Yrd Mat Min Mat Min Mat Fac Was Fac Low Low Dat Pro Fac Ext Cet Arc Hub Fac Was Fac Upp Upp Zhi Pro Fac Was Fac Upp Upp War Pro Res Tes Res Qua Sec Acc Com Ac0 Distress Signals 61 | . . . 6 . 4 . . . . . . 1 . 2 2 . 1 1 . 3 . . . . 3 . 1 . . . . 2 2 8 1 3 3 18 . Communications Jammed 4 | . . . . . . . . 1 . . . . . . . . . . . . . . . . . . . . . . . . . . . 1 2 . . Distress Signals 4 | . . . . . . . . 1 . . . . . . . . . . . . . . . . . . . . . . . . . . . 1 2 . . Times Spotted 654 | . 18 11 63 . 51 2 5 8 11 5 . 11 1 25 8 27 15 12 . 25 . 7 . . 18 5 28 6 2 56 2 13 23 34 17 27 40 20 58 Peak Tracking Total 15 | . 3 3 7 . 8 1 5 3 5 4 . 5 3 8 5 1 7 9 . 5 . 5 . . 8 3 6 4 5 15 2 4 6 7 3 3 9 5 9 Tactical Retreats 56 | . 2 2 5 . 3 . . 1 5 1 . 4 1 1 . . 1 6 . 1 . 1 . . 4 . 5 2 . . . . 1 4 2 . 2 2 . Traps | -11 -10 -10 -9 -9 -8 -7 -7 -7 -7 -7 -7 -6 -6 -6 -6 -6 -6 -5 -5 -5 -5 -5 -5 -4 -4 -4 -4 -4 -4 -4 -3 -3 -3 -2 -2 -2 -1 -1 -1 ------- Run | Yrd Mat Min Mat Min Mat Fac Was Fac Low Low Dat Pro Fac Ext Cet Arc Hub Fac Was Fac Upp Upp Zhi Pro Fac Was Fac Upp Upp War Pro Res Tes Res Qua Sec Acc Com Ac0 Traps Triggered 83 | . 2 . 5 . 4 2 . 3 . 1 . . 2 3 . . . 1 . . 1 . . . 1 . 1 . . 2 . . . . . . 3 52 . Indirectly 57 | . . . . . 1 . . . . . . . . . . . . . . . . . . . . . . . . 2 . . . . . . 2 52 . Trap Hack Attempts . | . . . . . . . . . . . . . . . . . . . . . . . . . . . . . . . . . . . . . . . . Triggered . | . . . . . . . . . . . . . . . . . . . . . . . . . . . . . . . . . . . . . . . . Disarmed . | . . . . . . . . . . . . . . . . . . . . . . . . . . . . . . . . . . . . . . . . Reprogrammed . | . . . . . . . . . . . . . . . . . . . . . . . . . . . . . . . . . . . . . . . . Reused . | . . . . . . . . . . . . . . . . . . . . . . . . . . . . . . . . . . . . . . . . Traps Extracted . | . . . . . . . . . . . . . . . . . . . . . . . . . . . . . . . . . . . . . . . . Installed . | . . . . . . . . . . . . . . . . . . . . . . . . . . . . . . . . . . . . . . . . Triggered . | . . . . . . . . . . . . . . . . . . . . . . . . . . . . . . . . . . . . . . . . Machines | -11 -10 -10 -9 -9 -8 -7 -7 -7 -7 -7 -7 -6 -6 -6 -6 -6 -6 -5 -5 -5 -5 -5 -5 -4 -4 -4 -4 -4 -4 -4 -3 -3 -3 -2 -2 -2 -1 -1 -1 ---------- Run | Yrd Mat Min Mat Min Mat Fac Was Fac Low Low Dat Pro Fac Ext Cet Arc Hub Fac Was Fac Upp Upp Zhi Pro Fac Was Fac Upp Upp War Pro Res Tes Res Qua Sec Acc Com Ac0 Machines Disabled 109 | . . . 2 . 3 2 . . . . . . . 3 . 5 22 2 . 1 . . . . 2 . 3 . . 2 . 2 9 7 4 19 1 9 11 Max in Single Turn 17 | . . . 1 . 2 1 . . . . . . . 1 . 1 17 1 . 1 . . . . 1 . 1 . . 1 . 1 1 3 1 2 1 2 2 Garrison Access 6 | . . . . . . . . . . . . . . . . . . . . 1 . . . . 2 . . . . . . 1 . 2 . . . . . Phase Generator 1 | . . . . . . . . . . . . . . . . . . . . . . . . . . . . . . . . . . . . . . 1 . Network Hub 1 | . . . . . . . . . . . . . . . . . 1 . . . . . . . . . . . . . . . . . . . . . . Machines Repaired . | . . . . . . . . . . . . . . . . . . . . . . . . . . . . . . . . . . . . . . . . Machines Dismantled . | . . . . . . . . . . . . . . . . . . . . . . . . . . . . . . . . . . . . . . . . Machines Sabotaged . | . . . . . . . . . . . . . . . . . . . . . . . . . . . . . . . . . . . . . . . . Overloaded Fab Kills . | . . . . . . . . . . . . . . . . . . . . . . . . . . . . . . . . . . . . . . . . Hacking | -11 -10 -10 -9 -9 -8 -7 -7 -7 -7 -7 -7 -6 -6 -6 -6 -6 -6 -5 -5 -5 -5 -5 -5 -4 -4 -4 -4 -4 -4 -4 -3 -3 -3 -2 -2 -2 -1 -1 -1 --------- Run | Yrd Mat Min Mat Min Mat Fac Was Fac Low Low Dat Pro Fac Ext Cet Arc Hub Fac Was Fac Upp Upp Zhi Pro Fac Was Fac Upp Upp War Pro Res Tes Res Qua Sec Acc Com Ac0 Machines Accessed 183 | . 9 1 12 1 7 8 . 14 1 . 4 . 6 3 . . 6 9 . 8 . 2 4 . 26 . 16 1 . 6 1 8 7 3 9 7 2 2 . Terminals 88 | . 7 . 6 . 5 3 . 7 . . . . 2 3 . . 6 4 . 3 . . . . 11 . 7 . . . 1 3 2 1 8 6 1 2 . Fabricators 25 | . . . . . . 2 . 5 . . . . . . . . . 3 . 2 . . . . 6 . 4 . . . . 1 2 . . . . . . Repair Stations 20 | . 1 . 2 . 1 2 . 1 . . . . 3 . . . . 1 . 1 . . . . 1 . 1 . . . . 3 2 . 1 . . . . Recycling Units 14 | . 1 . 2 . . 1 . . . . . . . . . . . 1 . 1 . . . . 4 . 3 . . . . . . 1 . . . . . Scanalyzers 7 | . . . 2 . 1 . . . . . . . 1 . . . . . . . . . . . 2 . 1 . . . . . . . . . . . . Garrison Access 9 | . . . . . . . . 1 . . . . . . . . . . . 1 . . . . 2 . . . . . . 1 1 1 . 1 1 . . Total Hacks 636 | . 22 1 36 1 20 21 . 42 1 . 28 . 11 7 . . 24 44 . 18 . 2 17 . 108 . 76 1 . 17 1 40 33 8 34 16 3 4 . Successful 422 | . 9 1 18 1 10 11 . 20 1 . 28 . 6 5 . . 17 33 . 13 . 2 17 . 79 . 67 1 . 17 1 24 23 1 13 4 . . . Failed 213 | . 13 . 18 . 10 10 . 22 . . . . 5 2 . . 7 11 . 5 . . . . 29 . 9 . . . . 16 10 7 20 12 3 4 . Catastrophic 31 | . 3 . 2 . 1 2 . 1 . . . . . . . . 1 . . . . . . . 3 . 1 . . . . 5 1 1 4 4 2 . . Database Lockouts 1 | . . . . . . . . . . . . . . . . . . . . . . . . . . . . . . . . . . . 1 . . . . Manual 270 | . 18 . 12 . 13 6 . 20 . . . . 5 3 1 . 17 23 . 9 . . . . 67 . 31 . . 1 . 14 10 . 18 2 . . . Terminals 342 | . 18 . 19 . 15 6 . 19 . . . . 6 7 . . 24 25 . 9 . . . . 71 . 43 . . . 1 15 13 4 28 14 1 4 . Fabricators 95 | . . . . . . 3 . 18 . . . . . . . . . 8 . 5 . . . . 23 . 17 . . . . 9 12 . . . . . . Repair Stations 80 | . 2 . 7 . 3 8 . 3 . . . . 4 . . . . 9 . 2 . . . . 4 . 11 . . . . 15 6 . 6 . . . . Recycling Units 22 | . 2 . 2 . . 4 . . . . . . . . . . . 2 . 1 . . . . 5 . 4 . . . . . . 2 . . . . . Scanalyzers 15 | . . . 8 . 2 . . . . . . . 1 . . . . . . . . . . . 3 . 1 . . . . . . . . . . . . Garrison Access 14 | . . . . . . . . 2 . . . . . . . . . . . 1 . . . . 2 . . . . . . 1 2 2 . 2 2 . . Terminal Hacks 191 | . 3 1 1 1 2 . . 6 1 . 28 . . 4 . . 7 13 . 2 . 2 17 . 32 . 29 1 . 17 1 2 6 . 11 4 . . . Record 33 | . . . . . . . . . . . 11 . . . . . . . . . . . 5 . . . . . . 16 1 . . . . . . . . Part Schematic 33 | . 2 . . . . . . 1 . . 10 . . 1 . . . 2 . 1 . . 4 . 10 . 1 . . . . . . . 1 . . . . Robot Schematic 4 | . . . . . . . . . . . 4 . . . . . . . . . . . . . . . . . . . . . . . . . . . . Robot Analysis 5 | . 1 . . . . . . . . . . . . . . . . . . . . . 4 . . . . . . . . . . . . . . . . Prototype ID Bank 14 | . . . . . . . . . . . 3 . . 1 . . 1 . . . . . 4 . 1 . 4 . . . . . . . . . . . . Open Door 11 | . . 1 . 1 . . . . 1 . . . . . . . . . . . . 2 . . . . . 1 . 1 . . . . 1 3 . . . Level Access Points 1 | . . . . . . . . . . . . . . . . . . . . . . . . . . . . . . . . . 1 . . . . . . Branch Access Points 5 | . . . 1 . . . . 1 . . . . . . . . . 1 . . . . . . 1 . 1 . . . . . . . . . . . . Machine Index 1 | . . . . . . . . . . . . . . . . . . . . . . . . . 1 . . . . . . . . . . . . . . Terminal Index 6 | . . . . . 1 . . 1 . . . . . . . . 1 1 . 1 . . . . . . 1 . . . . . . . . . . . . Fabricator Index 2 | . . . . . . . . . . . . . . . . . . 1 . . . . . . . . 1 . . . . . . . . . . . . Repair Station Index 1 | . . . . . . . . . . . . . . . . . . . . . . . . . . . 1 . . . . . . . . . . . . Garrison Index 1 | . . . . . . . . . . . . . . . . . . . . . . . . . . . 1 . . . . . . . . . . . . Alert Level 4 | . . . . . . . . . . . . . . . . . . 1 . . . . . . . . 1 . . . . . 1 . 1 . . . . Unreport Threat 11 | . . . . . . . . . . . . . . 1 . . . 2 . . . . . . 2 . 3 . . . . . . . 2 1 . . . Locate Traps 22 | . . . . . 1 . . 2 . . . . . 1 . . 3 . . . . . . . 3 . 6 . . . . 1 1 . 4 . . . . Recall Investigation 5 | . . . . . . . . . . . . . . . . . . . . . . . . . 2 . 2 . . . . . 1 . . . . . . Recall Extermination 5 | . . . . . . . . . . . . . . . . . . . . . . . . . 2 . 3 . . . . . . . . . . . . Recall Reinforcements 3 | . . . . . . . . . . . . . . . . . . . . . . . . . 1 . 1 . . . . . . . 1 . . . . Registered Components 4 | . . . . . . . . . . . . . . . . . . 1 . . . . . . 1 . . . . . . . 1 . 1 . . . . Registered Prototypes 3 | . . . . . . . . . . . . . . . . . . 1 . . . . . . 1 . . . . . . . 1 . . . . . . Zone Layout 17 | . . . . . . . . 1 . . . . . . . . 2 3 . . . . . . 7 . 3 . . . . 1 . . . . . . . Fabricator Hacks 56 | . . . . . . 2 . 7 . . . . . . . . . 4 . 3 . . . . 16 . 11 . . . . 6 7 . . . . . . Network Status 5 | . . . . . . 1 . 1 . . . . . . . . . . . 1 . . . . 1 . . . . . . 1 . . . . . . . Load Schematic 31 | . . . . . . . . 3 . . . . . . . . . 3 . 2 . . . . 9 . 7 . . . . 3 4 . . . . . . Build 20 | . . . . . . 1 . 3 . . . . . . . . . 1 . . . . . . 6 . 4 . . . . 2 3 . . . . . . Repair Station Hacks 61 | . 1 . 4 . 3 5 . 2 . . . . 3 . . . . 8 . 2 . . . . 4 . 10 . . . . 12 6 . 1 . . . . Scan Component 35 | . 1 . 2 . 2 4 . 1 . . . . 2 . . . . 4 . 1 . . . . 2 . 5 . . . . 6 4 . 1 . . . . Repair 26 | . . . 2 . 1 1 . 1 . . . . 1 . . . . 4 . 1 . . . . 2 . 5 . . . . 6 2 . . . . . . Recycling Unit Hacks 13 | . 1 . 2 . . 1 . . . . . . . . . . . 1 . 1 . . . . 4 . 3 . . . . . . . . . . . . Retrieve Components 13 | . 1 . 2 . . 1 . . . . . . . . . . . 1 . 1 . . . . 4 . 3 . . . . . . . . . . . . Scanalyzer 14 | . . . 8 . 1 . . . . . . . 1 . . . . . . . . . . . 3 . 1 . . . . . . . . . . . . Insert Component 10 | . . . 4 . 1 . . . . . . . 1 . . . . . . . . . . . 3 . 1 . . . . . . . . . . . . Analyze 4 | . . . 4 . . . . . . . . . . . . . . . . . . . . . . . . . . . . . . . . . . . . Garrison Access Hacks 5 | . . . . . . . . . . . . . . . . . . . . 1 . . . . 2 . . . . . . 1 . 1 . . . . . Seal Access 5 | . . . . . . . . . . . . . . . . . . . . 1 . . . . 2 . . . . . . 1 . 1 . . . . . Unauthorized Hacks 82 | . 4 . 3 . 4 3 . 5 . . . . 2 1 . . 10 7 . 4 . . . . 18 . 13 . . . . 3 4 . 1 . . . . Terminals 57 | . 4 . 3 . 4 3 . 2 . . . . 2 1 . . 10 5 . 2 . . . . 11 . 7 . . . . 1 1 . 1 . . . . Track 11 | . . . . . . . . . . . . . . . . . 6 2 . . . . . . 1 . 2 . . . . . . . . . . . . Assimilate 7 | . . . . . 2 1 . . . . . . . . . . . 1 . 1 . . . . . . 2 . . . . . . . . . . . . Botnet 22 | . 2 . 1 . . . . 1 . . . . 1 1 . . 2 2 . 1 . . . . 7 . 2 . . . . 1 1 . . . . . . Disrupt 7 | . . . 1 . 1 . . . . . . . . . . . 2 . . . . . . . 1 . 1 . . . . . . . 1 . . . . Operators 10 | . 2 . 1 . 1 2 . 1 . . . . 1 . . . . . . . . . . . 2 . . . . . . . . . . . . . . Fabricators 25 | . . . . . . . . 3 . . . . . . . . . 2 . 2 . . . . 7 . 6 . . . . 2 3 . . . . . . Prioritize 12 | . . . . . . . . 2 . . . . . . . . . . . . . . . . 4 . 3 . . . . 1 2 . . . . . . Recompile 13 | . . . . . . . . 1 . . . . . . . . . 2 . 2 . . . . 3 . 3 . . . . 1 1 . . . . . . Repair Stations . | . . . . . . . . . . . . . . . . . . . . . . . . . . . . . . . . . . . . . . . . Recycling Units . | . . . . . . . . . . . . . . . . . . . . . . . . . . . . . . . . . . . . . . . . Scanalyzers . | . . . . . . . . . . . . . . . . . . . . . . . . . . . . . . . . . . . . . . . . Garrison Access . | . . . . . . . . . . . . . . . . . . . . . . . . . . . . . . . . . . . . . . . . Data Cores Recovered 2 | . . . . . . . . 1 . . . . . . . . 1 . . . . . . . . . . . . . . . . . . . . . . Used 1 | . . . . . . . . . . . . . . . . . 1 . . . . . . . . . . . . . . . . . . . . . . Hacking Detections 116 | . 8 . 9 . 7 5 . 14 . . . . 6 3 1 . 5 7 . 5 . . . . 10 . 7 . . . . 6 4 3 8 4 2 2 . Full Trace Events 15 | . 2 . 2 . . 1 . 2 . . . . 1 . . . . 1 . . . . . . 2 . . . . . . 1 1 1 1 . . . . Feedback Events . | . . . . . . . . . . . . . . . . . . . . . . . . . . . . . . . . . . . . . . . . Feedback Blocked . | . . . . . . . . . . . . . . . . . . . . . . . . . . . . . . . . . . . . . . . . Robot Schematics Acquired 8 | . . . . . . . . . . . 4 . . . . . . . . . . . . . . . . . . . . . . . 4 . . . . Robots Built 2 | . . . . . . 2 . . . . . . . . . . . . . . . . . . . . . . . . . . . . . . . . . Authchips . | . . . . . . . . . . . . . . . . . . . . . . . . . . . . . . . . . . . . . . . . Time 134 | . . . . . . 134 . . . . . . . . . . . . . . . . . . . . . . . . . . . . . . . . . Total Robot Build Rating 8 | . . . . . . 8 . . . . . . . . . . . . . . . . . . . . . . . . . . . . . . . . . Part Schematics Acquired 46 | . 2 . 4 . . . . 1 . . 10 . . 1 . . . 2 . 1 . . 4 . 10 . 1 . . . . . . . 10 . . . . Parts Built 20 | . . . . . . . . 4 . . . . . . . . . 2 . . . . . . 6 . 4 . . . . 2 2 . . . . . . Authchips 13 | . . . . . . . . 1 . . . . . . . . . . . . . . . . 4 . 4 . . . . 2 2 . . . . . . Time 1157 | . . . . . . . . 167 . . . . . . . . . 39 . . . . . . 244 . 304 . . . . 76 327 . . . . . . Total Part Build Rating 126 | . . . . . . . . 20 . . . . . . . . . 14 . . . . . . 43 . 26 . . . . 10 13 . . . . . . Parts Repaired 26 | . . . 2 . 1 1 . 1 . . . . 1 . . . . 4 . 1 . . . . 2 . 5 . . . . 6 2 . . . . . . Time 1119 | . . . 89 . 51 136 . 39 . . . . 30 . . . . 83 . 31 . . . . 75 . 169 . . . . 322 94 . . . . . . Parts Recycled . | . . . . . . . . . . . . . . . . . . . . . . . . . . . . . . . . . . . . . . . . Recycled Matter . | . . . . . . . . . . . . . . . . . . . . . . . . . . . . . . . . . . . . . . . . Retrieved Matter . | . . . . . . . . . . . . . . . . . . . . . . . . . . . . . . . . . . . . . . . . Retrieved Components 43 | . 10 . 12 . . 3 . . . . . . . . . . . 2 . 1 . . . . 10 . 5 . . . . . . . . . . . . Parts Scanalyzed 4 | . . . 4 . . . . . . . . . . . . . . . . . . . . . . . . . . . . . . . . . . . . Part Schematics Acquired 4 | . . . 4 . . . . . . . . . . . . . . . . . . . . . . . . . . . . . . . . . . . . Parts Damaged 1 | . . . 1 . . . . . . . . . . . . . . . . . . . . . . . . . . . . . . . . . . . . Bothacking | -11 -10 -10 -9 -9 -8 -7 -7 -7 -7 -7 -7 -6 -6 -6 -6 -6 -6 -5 -5 -5 -5 -5 -5 -4 -4 -4 -4 -4 -4 -4 -3 -3 -3 -2 -2 -2 -1 -1 -1 ------------ Run | Yrd Mat Min Mat Min Mat Fac Was Fac Low Low Dat Pro Fac Ext Cet Arc Hub Fac Was Fac Upp Upp Zhi Pro Fac Was Fac Upp Upp War Pro Res Tes Res Qua Sec Acc Com Ac0 Used RIF Installer . | . . . . . . . . . . . . . . . . . . . . . . . . . . . . . . . . . . . . . . . . Robots Hacked . | . . . . . . . . . . . . . . . . . . . . . . . . . . . . . . . . . . . . . . . . Non-combat . | . . . . . . . . . . . . . . . . . . . . . . . . . . . . . . . . . . . . . . . . Combat . | . . . . . . . . . . . . . . . . . . . . . . . . . . . . . . . . . . . . . . . . Robot Hacks Applied . | . . . . . . . . . . . . . . . . . . . . . . . . . . . . . . . . . . . . . . . . Relay Couplers Released 2 | . . . . . . . . . . . . . . . . . . . . . . . . . . . . . . . . . . 2 . . . . . Machine Destruction 2 | . . . . . . . . . . . . . . . . . . . . . . . . . . . . . . . . . . 2 . . . . . Fabnet Peak Effective % . | . . . . . . . . . . . . . . . . . . . . . . . . . . . . . . . . . . . . . . . . Robots Rewired 12 | . . . . . . . . . . . . . 1 6 . . . . . . . . . . . . . . . 5 . . . . . . . . . Allies Hacked . | . . . . . . . . . . . . . . . . . . . . . . . . . . . . . . . . . . . . . . . . Hacks Repelled . | . . . . . . . . . . . . . . . . . . . . . . . . . . . . . . . . . . . . . . . . Allies | -11 -10 -10 -9 -9 -8 -7 -7 -7 -7 -7 -7 -6 -6 -6 -6 -6 -6 -5 -5 -5 -5 -5 -5 -4 -4 -4 -4 -4 -4 -4 -3 -3 -3 -2 -2 -2 -1 -1 -1 -------- Run | Yrd Mat Min Mat Min Mat Fac Was Fac Low Low Dat Pro Fac Ext Cet Arc Hub Fac Was Fac Upp Upp Zhi Pro Fac Was Fac Upp Upp War Pro Res Tes Res Qua Sec Acc Com Ac0 Total Allies 59 | . . . . 2 . 3 1 . . . . . 1 21 5 . . 1 . 1 . . . . . 18 1 . . 5 . . . . . . . . . Largest Group 18 | . . . . 2 2 3 2 . . . . . 1 14 14 11 7 1 . 1 . . . . . 18 1 . . 5 . . . . . . . . . Highest-Rated Group 788 | . . . . 50 50 100 57 . . . . . 12 514 788 741 516 26 . 26 . . . . . 656 26 . . 260 . . . . . . . . . Highest-Rated Ally 159 | . . . . 31 31 37 31 . . . . . 12 159 159 132 96 26 . 26 . . . . . 50 26 . . 64 . . . . . . . . . Total Orders 14 | . . . . . . . . . . . . . . 5 2 2 . . . 1 . . . . . . 1 . . 3 . . . . . . . . . STAY 9 | . . . . . . . . . . . . . . 3 1 1 . . . 1 . . . . . . 1 . . 2 . . . . . . . . . FOLLOW 5 | . . . . . . . . . . . . . . 2 1 1 . . . . . . . . . . . . . 1 . . . . . . . . . Ally Attacks 398 | . . . . . 8 4 9 . . . . . . 88 42 22 36 . . . . . . . . 163 . . . 26 . . . . . . . . . Total Damage 13456 | . . . . . 107 227 170 . . . . . . 2097 1079 649 1949 . . . . . . . . 6201 . . . 977 . . . . . . . . . Kills 55 | . . . . . 1 2 . . . . . . . 17 4 3 14 . . . . . . . . 13 . . . 1 . . . . . . . . . Allies Corrupted 4 | . . . . . . . . . . . . . . . . . 4 . . . . . . . . . . . . . . . . . . . . . . Allies Melted 3 | . . . . . . . . . . . . . . . . . . . . . . . . . . . . . . 1 . . . 2 . . . . . Intel | -11 -10 -10 -9 -9 -8 -7 -7 -7 -7 -7 -7 -6 -6 -6 -6 -6 -6 -5 -5 -5 -5 -5 -5 -4 -4 -4 -4 -4 -4 -4 -3 -3 -3 -2 -2 -2 -1 -1 -1 ------- Run | Yrd Mat Min Mat Min Mat Fac Was Fac Low Low Dat Pro Fac Ext Cet Arc Hub Fac Was Fac Upp Upp Zhi Pro Fac Was Fac Upp Upp War Pro Res Tes Res Qua Sec Acc Com Ac0 Active Infowar (turns) 31217 | 17 1139 1137 1540 . 245 646 49 731 426 641 41 412 450 1262 221 26 558 739 162 678 943 441 142 259 1337 312 1364 799 431 1279 1357 1014 1326 2634 2238 1814 1213 347 847 Sensors 25418 | . . . . . 244 646 49 731 426 641 41 385 450 1262 221 26 557 642 162 678 943 441 142 259 1337 312 1363 796 426 1253 1357 961 1164 2632 2079 1708 1084 . . Terrain 12753 | . . . . . . . . . . . . . . . . . . . . . . . . . . . 371 792 431 876 1354 1014 1326 2327 1044 1301 1070 . 847 Traps 2 | . . . . . . . . . . . . . 2 . . . . . . . . . . . . . . . . . . . . . . . . . . Seismic 3833 | 17 1139 1137 1540 . . . . . . . . . . . . . . . . . . . . . . . . . . . . . . . . . . . . Jamming 2305 | . . . . . 1 5 . 214 . . . 29 178 . . . 205 97 . . . . . . . . . . . . . . . . 413 604 212 347 . ECM 6 | . . . . . . . . . . . . . . . . . . . . . . . . . . . . . . . . . . 1 5 . . . . Robot Analysis Total 5 | . 1 . . . . . . . . . . . . . . . . . . . . . 4 . . . . . . . . . . . . . . . . Derelict Logs Recovered 15 | . . 1 . 1 . . . . 3 1 . 1 . . . . . . . . 1 3 . 2 . . . 1 1 . . . . . . . . . . Drone Launches 20 | . . 20 . . . . . . . . . . . . . . . . . . . . . . . . . . . . . . . . . . . . . Drone Recoveries . | . . . . . . . . . . . . . . . . . . . . . . . . . . . . . . . . . . . . . . . . Exploration | -11 -10 -10 -9 -9 -8 -7 -7 -7 -7 -7 -7 -6 -6 -6 -6 -6 -6 -5 -5 -5 -5 -5 -5 -4 -4 -4 -4 -4 -4 -4 -3 -3 -3 -2 -2 -2 -1 -1 -1 ------------- Run | Yrd Mat Min Mat Min Mat Fac Was Fac Low Low Dat Pro Fac Ext Cet Arc Hub Fac Was Fac Upp Upp Zhi Pro Fac Was Fac Upp Upp War Pro Res Tes Res Qua Sec Acc Com Ac0 Turns Passed 43250 | 115 1370 1249 2575 327 2073 646 49 731 426 648 41 426 450 1762 423 538 558 770 162 854 943 442 158 267 1377 312 1508 799 431 1281 1363 1014 1326 2642 2238 2200 1213 6277 1266 Spaces Moved 33825 | 55 955 477 1299 193 1031 952 104 1310 1009 1261 91 509 707 1163 161 378 748 974 291 1182 979 828 183 530 2196 329 2020 736 575 1002 229 671 778 1768 1111 1021 549 2976 494 Core 27 | 3 . . . . . . . . . . . . . . . . . . . . . . . . . . . . . . . . . . . . . . 24 Treads 6606 | . . . . . . . . . . . . . . . . . . . . . . . . . . . . . . . . . . 479 1111 1021 549 2976 470 Legs 3564 | . . . . . . . . . . . . . . . . . . . . . . . . . . . . . . 597 229 671 778 1289 . . . . . Wheels 3812 | 52 955 477 1299 193 836 . . . . . . . . . . . . . . . . . . . . . . . . . . . . . . . . . . Hover 19816 | . . . . . 195 952 104 1310 1009 1261 91 509 707 1163 161 378 748 974 291 1182 979 828 183 530 2196 329 2020 736 575 405 . . . . . . . . . Flight . | . . . . . . . . . . . . . . . . . . . . . . . . . . . . . . . . . . . . . . . . Fastest Speed 14 | 50 100 115 115 150 98 34 34 34 34 34 40 40 40 40 40 40 40 44 44 16 36 36 30 30 14 30 16 16 21 34 110 110 108 110 160 160 160 151 50 Average Speed 83 | 97 114 115 144 150 113 34 34 34 34 37 40 45 40 55 104 73 44 46 44 40 85 46 40 40 30 63 36 89 40 94 110 110 109 126 161 160 160 152 146 Slowest Speed 295 | 100 115 145 230 150 145 34 34 34 94 94 40 102 40 108 118 118 48 52 44 90 86 86 88 80 88 89 100 100 100 180 110 112 112 245 245 160 160 250 295 Overloaded Moves 89 | . . . . . . . . . . . . . . . . . . . . 6 . . . . 16 . 45 15 7 . . . . . . . . . . Propulsion Burnouts . | . . . . . . . . . . . . . . . . . . . . . . . . . . . . . . . . . . . . . . . . Robots Hopped 5 | . 5 . . . . . . . . . . . . . . . . . . . . . . . . . . . . . . . . . . . . . . Potential Cave-ins 4 | . . . . . . . . . . . . . . . . . . . . . . . . . . . . . . 4 . . . . . . . . . Cave-ins Triggered . | . . . . . . . . . . . . . . . . . . . . . . . . . . . . . . . . . . . . . . . . Teleports 2 | . . . . . . . . . . . . . . . . . . . . . . . . . . . . . . 1 . . . . . . . 1 . Exploration Rate (%) 60 | 4 99 84 76 46 54 20 83 33 95 94 69 48 20 86 56 89 54 19 96 23 93 90 60 62 44 95 42 87 71 88 47 18 65 42 91 57 22 65 43 Regions Visited 39 Branch Regions 23 Pre-discovered Areas 13 | . . . . 1 . . . . 2 . 1 . . . . . . . . . 1 1 3 1 . . . 1 1 1 . . . . . . . . . Known Exits Taken 29 | . . 1 1 . 1 . . 1 1 1 1 1 1 1 1 1 1 . . 1 1 1 1 1 . . 1 1 1 1 1 1 1 1 1 1 1 . . Unknown Exits Taken 4 | 1 1 . . 1 . . . . . . . . . . . . . . . . . . . . . . . . . . . . . . . . . 1 . Scrap Searched 24 | . . 2 . 2 . . . . 1 3 . 2 . . . . . . . . 2 2 . 3 . . . 3 3 . 1 . . . . . . . . Spaces Dug 459 | . . . . . . 12 . 29 5 9 . 4 8 . . . 6 25 . 18 6 . . 2 88 . 35 10 2 4 3 46 23 38 9 22 21 11 23 Terrain Destroyed 2680 | . . 28 4 . 32 12 . 29 6 31 . 19 9 23 26 16 178 33 3 27 13 99 . 2 147 2 145 43 31 154 44 98 115 106 20 169 44 147 825 Melee 196 | . . . . . . 12 . 28 5 6 . . 8 . . . 6 23 . 18 6 . . 2 65 . 9 . 1 4 1 2 . . . . . . . Projectile 424 | . . . . . . . . 1 1 12 . 9 1 18 . 16 11 9 3 7 7 2 . . 9 2 55 14 3 . 3 20 55 35 12 31 27 15 46 AOE 2045 | . . 28 4 . 32 . . . . 13 . 10 . 5 26 . 161 . . 2 . 97 . . 73 . 81 29 27 150 40 76 60 69 8 138 15 126 775 Terrain Rammed . | . . . . . . . . . . . . . . . . . . . . . . . . . . . . . . . . . . . . . . . . Walls Destroyed . | . . . . . . . . . . . . . . . . . . . . . . . . . . . . . . . . . . . . . . . . Machines Disabled . | . . . . . . . . . . . . . . . . . . . . . . . . . . . . . . . . . . . . . . . . Actions | -11 -10 -10 -9 -9 -8 -7 -7 -7 -7 -7 -7 -6 -6 -6 -6 -6 -6 -5 -5 -5 -5 -5 -5 -4 -4 -4 -4 -4 -4 -4 -3 -3 -3 -2 -2 -2 -1 -1 -1 --------- Run | Yrd Mat Min Mat Min Mat Fac Was Fac Low Low Dat Pro Fac Ext Cet Arc Hub Fac Was Fac Upp Upp Zhi Pro Fac Was Fac Upp Upp War Pro Res Tes Res Qua Sec Acc Com Ac0 Total 46266 | 95 1154 1102 1796 232 1708 1237 117 1523 1062 1380 94 656 858 2228 403 561 945 1245 312 1444 1059 870 246 581 2772 404 2658 847 746 1275 1329 898 1158 2092 1474 1435 777 4625 868 Wait 8903 | 13 132 563 261 31 412 231 12 145 30 61 . 91 123 948 221 108 164 208 1 126 46 26 19 34 408 37 473 69 143 158 1087 139 240 134 235 230 94 1345 105 Move 33780 | 54 945 476 1298 192 1030 952 103 1309 1008 1260 90 508 706 1162 160 377 747 974 290 1181 978 827 182 529 2196 328 2019 735 574 1001 228 670 777 1767 1110 1020 548 2975 494 Hop 4 | . 4 . . . . . . . . . . . . . . . . . . . . . . . . . . . . . . . . . . . . . . Pick Up 345 | 7 16 2 38 5 28 6 1 11 . 4 . 1 4 3 2 7 . 6 3 10 1 . 3 1 19 1 25 6 . 17 1 13 13 25 6 11 8 38 3 Fast Attach 135 | 8 . . 10 . 8 . . 2 . 1 2 2 1 1 1 2 1 5 1 3 . 1 5 5 5 2 7 . . 2 1 4 3 10 8 9 2 22 1 Attach 133 | . . 3 14 . 5 3 . 1 . 1 . . 2 . . . . 3 1 8 . . 1 . 7 . 4 . . 1 . 9 2 12 3 5 2 24 22 Detach 69 | 1 . . 1 . . . . . . . . . . . . . . 1 2 7 . . 2 . 1 . 1 . . . . . 2 13 4 2 . 27 5 Swap 625 | . 9 9 32 1 57 7 . 4 3 10 . 14 4 26 8 6 5 7 1 22 3 8 7 3 29 5 31 13 11 24 4 19 42 18 32 49 18 25 59 Drop 336 | 2 8 1 31 3 44 5 1 11 . 4 2 2 2 3 2 9 4 3 1 12 1 1 7 7 14 4 6 4 1 16 1 7 16 39 9 11 8 31 3 Fire 1563 | 10 40 47 111 . 124 5 . 5 16 33 . 38 1 25 9 52 12 13 10 49 24 7 20 . 18 27 80 20 6 38 6 31 63 73 67 98 97 115 173 Melee 255 | . . . . . . 15 . 35 5 6 . . 13 . . . 12 25 2 26 6 . . 2 75 . 12 . 10 4 1 6 . . . . . . . Ram 1 | . . . . . . . . . . . . . . . . . . . . . . . . . . . . . . . . . . . . . . . 1 Kick . | . . . . . . . . . . . . . . . . . . . . . . . . . . . . . . . . . . . . . . . . Crush 2 | . . . . . . . . . . . . . . . . . . . . . . . . . . . . . . . . . . . . . . . 2 Escape Stasis 54 | . . . . . . 13 . . . . . . . 25 . . . . . . . . . . . . . . . . . . . . . . . 16 . Rewire 61 | . . 1 . . . . . . . . . . 2 35 . . . . . . . . . . . . . . 1 14 . . . 1 . . . 7 . Trap . | . . . . . . . . . . . . . . . . . . . . . . . . . . . . . . . . . . . . . . . . Miscellaneous . | . . . . . . . . . . . . . . . . . . . . . . . . . . . . . . . . . . . . . . . . Route ------- -11/Scrapyard -10/Materials (discovered 6 exits: *Mat x3 / *Min x2 / [*Sub]) -10/Mines (discovered 3 exits: *Mat x2 / [*Exi]) -9/Materials (discovered 3 exits: *Mat x2 / *Min) -9/Mines (discovered 2 exits: *Mat x2) -8/Materials -7/Factory -7/Waste -7/Factory (discovered 2 exits: *Low x2) -7/Lower Caves (discovered 2 exits: *Low / *Dat) -7/Lower Caves (discovered 2 exits: *Fac / *Dat) -7/Data Miner -6/Proximity Caves -6/Factory (discovered 2 exits: *Low / *Ext) -6/Extension (discovered 2 exits: *Fac / *Cet) -6/Cetus (discovered 2 exits: *Fac / *Arc) -6/Archives (discovered 3 exits: *Fac / *Hub x2) -6/Hub_04(d) (discovered 2 exits: *Fac x2) -5/Factory (discovered 2 exits: Upp x2) -5/Waste -5/Factory -5/Upper Caves -5/Upper Caves -5/Zhirov -4/Proximity Caves -4/Factory (discovered 4 exits: *Res / Upp x2 / Arm) -4/Waste -4/Factory (discovered 5 exits: *Res x2 / *Upp x2 / Arm) -4/Upper Caves -4/Upper Caves (discovered 2 exits: *Res / *War) -4/Warlord -3/Proximity Caves -3/Research (discovered 2 exits: *Res / *Tes) -3/Testing -2/Research (discovered 3 exits: *Acc x2 / *Qua) -2/Quarantine (discovered 3 exits: *Acc / *Sec / [*Frg]) -2/Section 7 -1/Access -1/Command (discovered 3 exits: [*Sur x2] / [*Ac0]) -1/Access_0 History --------- Turn | Location | Event 10 | -11/Scrapyard | Discovered new exit (range 16) 116 | -11/Scrapyard | Entered Materials 117 | -10/Materials | Met a group of wandering Federalists 277 | -10/Materials | Discovered new exit (range 16) 315 | -10/Materials | Build established: Mutant 783 | -10/Materials | Discovered new exit (range 15) 867 | -10/Materials | Discovered new exit (range 8) 901 | -10/Materials | Discovered new exit (range 16) 1361 | -10/Materials | Discovered new exit (range 11) 1408 | -10/Materials | Discovered new exit (range 16) 1486 | -10/Materials | Entered Mines 1500 | -10/Mines | Met a Derelict bent on vengeance 1688 | -10/Mines | Assembled infested the area 2296 | -10/Mines | Core integrity fell below 50% 2409 | -10/Mines | Discovered new exit (range 8) 2450 | -10/Mines | Core integrity fell below 20% 2490 | -10/Mines | Discovered new exit (range 9) 2561 | -10/Mines | Learned Materials emergency access door positions 2572 | -10/Mines | Discovered new exit (range 5) 2645 | -10/Mines | Found the Drone Emporium 2650 | -10/Mines | Found Prototype Device 2651 | -10/Mines | Identified Sensor Drone Bay 2664 | -10/Mines | Identified exit to Materials 2735 | -10/Mines | Entered Materials 2735 | -9/Materials | Evolved 2 slots: Utility x2 2750 | -9/Materials | Murdered 14 allies 3167 | -9/Materials | Lost 4 parts (1p2n1w) 3454 | -9/Materials | Build established: Scavenger-Mutant 3835 | -9/Materials | Discovered new exit (range 4) 4573 | -9/Materials | Core integrity fell below 50% 4741 | -9/Materials | Build established: Mutant 4772 | -9/Materials | Discovered new exit (range 13) 4821 | -9/Materials | Lost 3 parts (1n1u1w) 4861 | -9/Materials | Identified exit to Mines 5258 | -9/Materials | Repaired Hvy. Ion Engine 5297 | -9/Materials | Repaired Adv. Visual Processing Unit 5310 | -9/Materials | Entered Mines 5325 | -9/Mines | Discovered new exit (range 7) 5334 | -9/Mines | Met a Derelict who couldn't figure out how to use a Trap Extractor 5427 | -9/Mines | Learned location of Recycling (-8) 5466 | -9/Mines | Found a damaged Exp. Sensor Array with a note attached 5470 | -9/Mines | Found Prototype Device 5568 | -9/Mines | Received a Rocket Launcher from a helpful Derelict 5610 | -9/Mines | Discovered new exit (range 12) 5637 | -9/Mines | Entered Materials 5637 | -8/Materials | Accompanied by 2 allies 5637 | -8/Materials | Evolved 2 slots: Propulsion x2 5642 | -8/Materials | Led the pair of lost Derelicts to an unsafe place 5650 | -8/Materials | Identified Exp. Sensor Array 6406 | -8/Materials | Repaired Hvy. Ion Engine 6429 | -8/Materials | Core integrity fell below 50% 6786 | -8/Materials | Build established: Scavenger-Mutant 7309 | -8/Materials | Discovered new exit (range 16) 7703 | -8/Materials | Identified exit to Factory 7710 | -8/Materials | Entered Factory 7710 | -7/Factory | Evolved 2 slots: Propulsion x1, Utility x1 7764 | -7/Factory | Build established: Mutant 8112 | -7/Factory | Repaired Broken Exp. Sensor Array 8322 | -7/Factory | Fabricated P-60 Hacker? 8356 | -7/Factory | Manually triggered Chute Trap 8356 | -7/Factory | Sucked down chute 8356 | -7/Factory | Entered Waste 8357 | -7/Waste | Met a frightened Derelict 8364 | -7/Waste | Spotted C-40 Crusher 8365 | -7/Waste | Spotted C-40 Crusher 8371 | -7/Waste | EMP discharged 8374 | -7/Waste | Spotted C-40 Crusher 8376 | -7/Waste | 1 allies followed down the chute 8376 | -7/Waste | Spotted C-40 Crusher 8383 | -7/Waste | Spotted C-40 Crusher 8388 | -7/Waste | Discovered new exit (range 10) 8392 | -7/Waste | Identified exit to Factory 8405 | -7/Waste | Entered Factory 8477 | -7/Factory | Repaired Broken Hvy. Shock Bomb Launcher 8672 | -7/Factory | Identified exit to Lower Caves 8792 | -7/Factory | Fabricated Hacking Suite? 8834 | -7/Factory | Fabricated Hacking Suite (x1) 9061 | -7/Factory | Fabricated Adv. Particle Charger (x2) 9126 | -7/Factory | System corruption reached 10% 9136 | -7/Factory | Entered Lower Caves 9151 | -7/Lower Caves | Attracted the attention of an 0b10 checkpoint 9287 | -7/Lower Caves | Learned location of Zion (-6) 9335 | -7/Lower Caves | Learned Factory emergency access door positions 9465 | -7/Lower Caves | A Derelict revealed a hidden shortcut to meet someone special 9467 | -7/Lower Caves | Identified exit to Data Miner 9489 | -7/Lower Caves | Discovered new exit (range 7) 9562 | -7/Lower Caves | Identified exit to Lower Caves 9562 | -7/Lower Caves | Entered another Lower Caves area 9567 | -7/Lower Caves | Discovered new exit (range 12) 9570 | -7/Lower Caves | Identified exit to Factory 9972 | -7/Lower Caves | Learned Factory terminal intel 10019 | -7/Lower Caves | Discovered exit to Data Miner (range 13) 10210 | -7/Lower Caves | Entered Data Miner 10210 | -7/Data Miner | Discovered new exit (range 6) 10219 | -7/Data Miner | Met Data Miner 10226 | -7/Data Miner | Learned location of Section 7 (-2) 10226 | -7/Data Miner | Acquired the access code to Warlord's prototype stash 10232 | -7/Data Miner | Received God Mode back door access code from Data Miner 10250 | -7/Data Miner | Identified exit to Proximity Caves 10251 | -7/Data Miner | Entered Proximity Caves 10625 | -6/Proximity Caves | Discovered exit to Factory (range 3) 10629 | -6/Proximity Caves | Learned Factory non-interactive machine intel 10677 | -6/Proximity Caves | Entered Factory 10677 | -6/Factory | Evolved 2 slots: Utility x2 10679 | -6/Factory | Loaded intel: 189 non-interactive machine locations 10680 | -6/Factory | Loaded intel: 27 terminal locations 10773 | -6/Factory | Repaired Aerolev Unit 10818 | -6/Factory | Discovered new exit (range 8) 10820 | -6/Factory | Identified exit to Extension 10936 | -6/Factory | Discovered new exit (range 14) 10966 | -6/Factory | Build established: Hacker-Mutant 10987 | -6/Factory | Identified exit to Lower Caves 11127 | -6/Factory | Entered Extension 11167 | -6/Extension | Rescued a captive Derelict 11228 | -6/Extension | Rescued a captive Derelict 11234 | -6/Extension | Rescued a captive Derelict 11235 | -6/Extension | Rescued a captive Derelict 11333 | -6/Extension | Rescued a captive Derelict 11335 | -6/Extension | Rescued a captive Derelict 11365 | -6/Extension | Rescued a captive Derelict 11471 | -6/Extension | Lost 3 allies 11906 | -6/Extension | Spotted B-75 Beast 11917 | -6/Extension | Allies destroyed B-75 Beast 11923 | -6/Extension | Spotted B-75 Beast 11933 | -6/Extension | Allies destroyed B-75 Beast 11941 | -6/Extension | Lost 3 allies 12019 | -6/Extension | Rescued a captive Derelict 12020 | -6/Extension | Rescued a captive Derelict 12089 | -6/Extension | Rescued a captive Derelict 12096 | -6/Extension | Rescued a captive Derelict 12116 | -6/Extension | Rescued a captive Derelict 12128 | -6/Extension | Rescued a captive Derelict 12145 | -6/Extension | Rescued A7 12167 | -6/Extension | Rescued a captive Derelict 12821 | -6/Extension | Discovered new exit (range 10) 12836 | -6/Extension | Discovered new exit (range 6) 12840 | -6/Extension | Identified exit to Cetus 12869 | -6/Extension | Identified exit to Factory 12889 | -6/Extension | Entered Cetus 12889 | -6/Cetus | Accompanied by 14 allies (A7) 12894 | -6/Cetus | Acquired a Cetus Manufacturing Module code from A7 12919 | -6/Cetus | Spotted Cetus Guard 12919 | -6/Cetus | Spotted Cetus Guard 12919 | -6/Cetus | Spotted Cetus Guard 12919 | -6/Cetus | Spotted Cetus Guard 12930 | -6/Cetus | Allies destroyed Cetus Guard 12933 | -6/Cetus | Destroyed Cetus Guard 12938 | -6/Cetus | Allies destroyed Cetus Guard 12945 | -6/Cetus | Destroyed Cetus Guard 12974 | -6/Cetus | Lost 7 allies 13001 | -6/Cetus | Started Cetus Manufacturing Module 13026 | -6/Cetus | Manufactured an Enhanced Grunt 13051 | -6/Cetus | Manufactured an Enhanced Grunt 13076 | -6/Cetus | Manufactured an Enhanced Grunt 13101 | -6/Cetus | Manufactured an Enhanced Grunt 13126 | -6/Cetus | Manufactured an Enhanced Grunt 13161 | -6/Cetus | Discovered new exit (range 15) 13214 | -6/Cetus | Spotted Cetus Guard 13215 | -6/Cetus | Spotted Cetus Guard 13215 | -6/Cetus | Spotted Cetus Guard 13216 | -6/Cetus | Spotted Cetus Guard 13219 | -6/Cetus | Allies destroyed Cetus Guard 13223 | -6/Cetus | Destroyed Cetus Guard 13224 | -6/Cetus | Allies destroyed Cetus Guard 13226 | -6/Cetus | Destroyed Cetus Guard 13235 | -6/Cetus | Discovered exit to Factory (range 15) 13241 | -6/Cetus | Met Revision 17 13293 | -6/Cetus | Identified exit to Archives 13312 | -6/Cetus | Entered Archives 13312 | -6/Archives | Accompanied by 11 allies (A7) 13394 | -6/Archives | Discovered new exit (range 16) 13399 | -6/Archives | Lost 3 allies 13521 | -6/Archives | Discovered new exit (range 16) 13679 | -6/Archives | Discovered exit to Factory (range 16) 13774 | -6/Archives | Identified exit to Hub_04(d) 13850 | -6/Archives | Entered Hub_04(d) 13850 | -6/Hub_04(d) | Accompanied by 7 allies 13856 | -6/Hub_04(d) | Discovered exit to Factory (range 11) 14092 | -6/Hub_04(d) | Discovered exit to Factory (range 6) 14228 | -6/Hub_04(d) | Network Hub disabled 14395 | -6/Hub_04(d) | Spotted Lightning 14395 | -6/Hub_04(d) | Spotted Lightning 14408 | -6/Hub_04(d) | Entered Factory 14408 | -5/Factory | Evolved 2 slots: Propulsion x1, Utility x1 14435 | -5/Factory | Lost 5 allies 14449 | -5/Factory | Identified exit to Upper Caves 14490 | -5/Factory | Spotted B-75 Beast 14518 | -5/Factory | Fabricated Lrn. Sensor Array (x2) 14618 | -5/Factory | Repaired Imp. Gravmag System 14640 | -5/Factory | Repaired Adv. EMP Blaster 14674 | -5/Factory | Repaired Adv. KE Penetrator 14689 | -5/Factory | Repaired Gravmag System 15178 | -5/Factory | Sucked down chute 15178 | -5/Factory | Entered Waste 15178 | -5/Waste | The area was eerily silent 15202 | -5/Waste | Found Broken Fusion Bomb Launcher 15329 | -5/Waste | Discovered new exit (range 13) 15335 | -5/Waste | Identified exit to Factory 15340 | -5/Waste | Entered Factory 15710 | -5/Factory | Repaired Broken Fusion Bomb Launcher? 15743 | -5/Factory | Discovered exit to Upper Caves (range 7) 15975 | -5/Factory | System corruption reached 10% 16194 | -5/Factory | Entered Upper Caves 16200 | -5/Upper Caves | Found DCF Scrap (12 items) 16935 | -5/Upper Caves | Discovered new exit (range 5) 16941 | -5/Upper Caves | Identified exit to Upper Caves 17100 | -5/Upper Caves | Learned location of Armory (-4) 17137 | -5/Upper Caves | Entered another Upper Caves area 17323 | -5/Upper Caves | Learned Factory terminal intel 17413 | -5/Upper Caves | Encountered a Warlord checkpoint 17544 | -5/Upper Caves | Learned Factory trap positions 17559 | -5/Upper Caves | Discovered new exit (range 13) 17576 | -5/Upper Caves | Identified exit to Zhirov 17579 | -5/Upper Caves | Entered Zhirov 17579 | -5/Zhirov | Discovered new exit (range 3) 17580 | -5/Zhirov | Identified exit to Proximity Caves 17587 | -5/Zhirov | Met Zhirov 17595 | -5/Zhirov | Learned location of Quarantine (-2) 17595 | -5/Zhirov | Learned location of Testing (-3) 17595 | -5/Zhirov | Learned location of Command (-1) 17597 | -5/Zhirov | Zhirov requested help retrieving the SGEMP Prototype 17602 | -5/Zhirov | Found Alien Artifact 17602 | -5/Zhirov | Identified Integrated Dissipator 17602 | -5/Zhirov | Installed Integrated Dissipator, increased core heat dissipation (+20) 17611 | -5/Zhirov | Found Alien Artifact 17737 | -5/Zhirov | Entered Proximity Caves 17938 | -4/Proximity Caves | Learned 4 Research zone layouts 17965 | -4/Proximity Caves | Discovered new exit (range 14) 18004 | -4/Proximity Caves | Identified exit to Factory 18004 | -4/Proximity Caves | Entered Factory 18004 | -4/Factory | Evolved 2 slots: Utility x2 18005 | -4/Factory | Loaded intel: 130 trap records 18006 | -4/Factory | Loaded intel: 26 terminal locations 18140 | -4/Factory | Fabricated Exp. Hacking Suite (x1) 18302 | -4/Factory | Build established: Wizard-Sprinter 18450 | -4/Factory | Repaired Graphene Brace? 18500 | -4/Factory | Repaired Prc. Energy Filter? 18589 | -4/Factory | Identified Transdimensional Reconstructor 18603 | -4/Factory | Found Prototype Device 18645 | -4/Factory | Fabricated Gamma Bomb Array? 18736 | -4/Factory | Identified exit to Upper Caves 18736 | -4/Factory | Identified exit to Armory 18777 | -4/Factory | Garrison activated, responded to threat 18812 | -4/Factory | Discovered new exit (range 14) 18835 | -4/Factory | Found Quantum Capacitor 18852 | -4/Factory | Identified Exp. ECM Suite 18874 | -4/Factory | Fabricated Gamma Bomb Array? 19004 | -4/Factory | Fabricated Mni. Smartbomb Launcher? 19035 | -4/Factory | Fabricated Exp. Signal Interpreter? 19155 | -4/Factory | Fabricated Exp. Terrain Scan Processor (x1) 19381 | -4/Factory | Manually triggered Chute Trap 19381 | -4/Factory | Sucked down chute 19381 | -4/Factory | Entered Waste 19389 | -4/Waste | Spotted C-40 Crusher 19397 | -4/Waste | Warlord forces began an assault 19455 | -4/Waste | Spotted C-40 Crusher 19461 | -4/Waste | Spotted C-40 Crusher 19468 | -4/Waste | Allies destroyed C-40 Crusher 19485 | -4/Waste | Allies destroyed C-40 Crusher 19494 | -4/Waste | Spotted C-40 Crusher 19505 | -4/Waste | Spotted C-40 Crusher 19511 | -4/Waste | Allies destroyed C-40 Crusher 19512 | -4/Waste | Spotted C-40 Crusher 19514 | -4/Waste | Lost 7 allies 19522 | -4/Waste | Allies destroyed C-40 Crusher 19528 | -4/Waste | Allies destroyed C-40 Crusher 19541 | -4/Waste | Destroyed C-40 Crusher 19665 | -4/Waste | Discovered new exit (range 13) 19693 | -4/Waste | Identified exit to Factory 19693 | -4/Waste | Entered Factory 19756 | -4/Factory | Build established: Wizard-Mutant 19761 | -4/Factory | Repaired Broken Centrium Leg 19775 | -4/Factory | Repaired Hcp. Storage Unit 19835 | -4/Factory | Repaired Cmb. Linear Gravjet 19881 | -4/Factory | Repaired Cmb. Linear Gravjet 19918 | -4/Factory | Repaired Lrn. Sensor Array 20032 | -4/Factory | Discovered new exit (range 8) 20035 | -4/Factory | Identified exit to Research 20407 | -4/Factory | Fabricated Exp. Utility Shielding (x1) 20478 | -4/Factory | Fabricated Adv. EM Shield? 20575 | -4/Factory | Fabricated Exp. Terrain Scanner? 20835 | -4/Factory | Discovered exit to Research (range 26) 21018 | -4/Factory | Fabricated Prc. Energy Filter? 21201 | -4/Factory | Entered Upper Caves 21235 | -4/Upper Caves | Entered a destroyed Warlord outpost 21327 | -4/Upper Caves | Encountered a Warlord checkpoint 21494 | -4/Upper Caves | Build established: Hacker-Assassin 21634 | -4/Upper Caves | Discovered new exit (range 30) 21907 | -4/Upper Caves | Identified exit to Upper Caves 22000 | -4/Upper Caves | Entered another Upper Caves area 22003 | -4/Upper Caves | Discovered exit to Research (range 17) 22376 | -4/Upper Caves | Discovered new exit (range 28) 22392 | -4/Upper Caves | Identified exit to Warlord 22431 | -4/Upper Caves | Entered Warlord 22443 | -4/Warlord | System corruption cleaned by Quarantine Array 22444 | -4/Warlord | Discovered new exit (range 29) 22468 | -4/Warlord | Learned Factory terminal intel 22468 | -4/Warlord | Learned Armory fabricator intel 22468 | -4/Warlord | Learned Armory recycling unit intel 22468 | -4/Warlord | Learned Armory garrison access intel 22468 | -4/Warlord | Learned 4 Testing zone layouts 22468 | -4/Warlord | Learned 4 Testing zone layouts 22468 | -4/Warlord | Learned Quarantine emergency access door positions 22585 | -4/Warlord | Met Warlord 22610 | -4/Warlord | Warlord's base attacked by MAIN.C 22621 | -4/Warlord | Opened Warlord's prototype stash 22643 | -4/Warlord | Found Prototype Reactor 22651 | -4/Warlord | Found Prototype Device 22653 | -4/Warlord | Found Prototype Processor 22674 | -4/Warlord | Identified Spectral Analyzer 22681 | -4/Warlord | Identified Vortex Chain Reactor 22721 | -4/Warlord | Found Prototype Energy Cannon 22726 | -4/Warlord | Found Prototype Energy Cannon 22728 | -4/Warlord | Identified Vortex Driver (x2) 22754 | -4/Warlord | Identified Thermal Barrier 22918 | -4/Warlord | Build established: Machinist-Assassin 22934 | -4/Warlord | Found Prototype Special Weapon 22934 | -4/Warlord | Identified RU-N14's Throwing Claymores v3 22942 | -4/Warlord | Found RU-N14's Throwing Claymores v3 22945 | -4/Warlord | Found RU-N14's Throwing Claymores v3 22949 | -4/Warlord | Found RU-N14's Throwing Claymores v3 22960 | -4/Warlord | Warlord forces counterattacked 22994 | -4/Warlord | Spotted B-86 Titan 23053 | -4/Warlord | Lost 8 allies 23103 | -4/Warlord | Lost 3 allies 23254 | -4/Warlord | Lost 4 allies 23285 | -4/Warlord | Warlord base infiltrated, sounded retreat 23292 | -4/Warlord | Spotted Executioner 23361 | -4/Warlord | Lost 8 allies 23446 | -4/Warlord | Spotted Executioner 23493 | -4/Warlord | Warped through subspace 23579 | -4/Warlord | Spotted Striker 23589 | -4/Warlord | Lost 15 allies 23609 | -4/Warlord | Spotted Executioner 23616 | -4/Warlord | Destroyed Executioner 23620 | -4/Warlord | Build established: Hacker-Mutant 23630 | -4/Warlord | Spotted B-90 Cyclops 23688 | -4/Warlord | Lost 13 allies 23711 | -4/Warlord | Identified exit to Proximity Caves 23712 | -4/Warlord | Entered Proximity Caves 23892 | -3/Proximity Caves | Discovered exit to Research (range 27) 24021 | -3/Proximity Caves | Build established: Machinist-Assassin 25075 | -3/Proximity Caves | Entered Research 25075 | -3/Research | Evolved 2 slots: Power x1, Utility x1 25204 | -3/Research | Repaired Exp. Utility Shielding? 25275 | -3/Research | Revision forces began assault on 0b10 25292 | -3/Research | Met up with Revision 17++ 25349 | -3/Research | Build established: Hacker-Assassin 25590 | -3/Research | Repaired Enh. Biometal Leg 25610 | -3/Research | Repaired Enh. Biometal Leg 25644 | -3/Research | Repaired Mak. Sensor Array 25694 | -3/Research | Repaired Hvy. Neutron Cannon 25717 | -3/Research | Repaired Helical Railgun 25775 | -3/Research | Research terminal network offline 25855 | -3/Research | Spotted Striker 25875 | -3/Research | Destroyed Striker 25898 | -3/Research | Lost 3 allies 25909 | -3/Research | Found Gamma Bomb Array 25910 | -3/Research | Discovered new exit (range 22) 25914 | -3/Research | Discovered new exit (range 30) 25970 | -3/Research | Identified exit to Testing 25986 | -3/Research | Fabricated Exp. Utility Shielding? 26041 | -3/Research | Fabricated Exp. Targeting Computer? 26089 | -3/Research | Entered Testing 26101 | -3/Testing | Found Prototype Device 26101 | -3/Testing | Identified Exp. Hardlight Generator 26153 | -3/Testing | Build established: Machinist-Skirmisher 26179 | -3/Testing | Repaired Enh. Biometal Leg 26301 | -3/Testing | Identified exit to Research 26321 | -3/Testing | Found Prototype Energy Cannon 26321 | -3/Testing | Identified Cld. Nova Cannon 26424 | -3/Testing | Spotted Striker 26478 | -3/Testing | Found Portable AFG 26536 | -3/Testing | Found Prototype Energy Cannon 26577 | -3/Testing | Spotted Striker 26581 | -3/Testing | Identified Imp. Potential Cannon 26603 | -3/Testing | Found Prototype Energy Cannon 26622 | -3/Testing | Spotted Alpha 7 26627 | -3/Testing | Destroyed Striker 26628 | -3/Testing | Destroyed Striker 26676 | -3/Testing | Destroyed Alpha 7 26753 | -3/Testing | Repaired Exp. Utility Shielding 26885 | -3/Testing | Fabricated Hvy. Reactive Plating (x1) 26951 | -3/Testing | Identified Potential Cannon 27056 | -3/Testing | Found Prototype Ballistic Gun 27102 | -3/Testing | Fabricated Imp. Particle Accelerator (x1) 27106 | -3/Testing | Identified Hyp. Multirail 27239 | -3/Testing | Destroyed 8 combat bots 27415 | -3/Testing | Entered Research 27415 | -2/Research | Warlord forces began assault on 0b10 27415 | -2/Research | Evolved 2 slots: Weapon x2 27525 | -2/Research | Research machine network offline 27581 | -2/Research | Found Prototype Device 27592 | -2/Research | Found Prototype Device 27638 | -2/Research | Found Prototype Device 27661 | -2/Research | Identified Exp. Focal Shield 27688 | -2/Research | Identified Exp. Transmission Jammer 27719 | -2/Research | Identified Exp. Shock Absorption System 27744 | -2/Research | Discovered new exit (range 30) 27823 | -2/Research | Found Prototype Device 27857 | -2/Research | Identified Exp. Shield Generator 27864 | -2/Research | Found Prototype Launcher 27875 | -2/Research | Identified Tactical Quantum Warhead 27883 | -2/Research | Found Exp. Hacking Suite 27952 | -2/Research | Met up with Warlord 27972 | -2/Research | Borebot progress halted 28028 | -2/Research | Borebot progress halted 28042 | -2/Research | Found Prototype Device 28065 | -2/Research | Identified Exp. Actuator Array 28087 | -2/Research | Borebot progress halted 28127 | -2/Research | Found Prototype Processor 28138 | -2/Research | Identified Exp. Melee Analysis Suite 28173 | -2/Research | Spotted Executioner 28176 | -2/Research | Destroyed Executioner 28191 | -2/Research | Discovered new exit (range 29) 28197 | -2/Research | Found Prototype Processor 28232 | -2/Research | Identified Exp. Core Analyzer 28386 | -2/Research | Identified exit to Access 28428 | -2/Research | Discovered exit to Access (range 26) 28655 | -2/Research | Spotted Striker 28673 | -2/Research | Spotted Striker 28675 | -2/Research | Spotted Striker 28677 | -2/Research | Lost 7 allies 28686 | -2/Research | Destroyed Striker 28689 | -2/Research | Destroyed Striker 28744 | -2/Research | Spotted Executioner 28746 | -2/Research | Spotted Executioner 28751 | -2/Research | Destroyed Executioner 28754 | -2/Research | Destroyed Executioner 28768 | -2/Research | Spotted Striker 28771 | -2/Research | Found Corrupted Prototype Device 28776 | -2/Research | Found Corrupted Prototype Device 28799 | -2/Research | Identified Adv. Kinecellerator (x2) 28919 | -2/Research | Given Cave Seal Controls access code 29177 | -2/Research | Spotted Executioner 29181 | -2/Research | Destroyed Executioner 29196 | -2/Research | Destroyed Striker 29352 | -2/Research | Build established: Machinist-Tank 29414 | -2/Research | Spotted Striker 29415 | -2/Research | Spotted Striker 29425 | -2/Research | Destroyed Striker 29427 | -2/Research | Destroyed Striker 29455 | -2/Research | Spotted Striker 29493 | -2/Research | Lost 3 allies 29747 | -2/Research | Spotted Striker 29766 | -2/Research | Destroyed Striker 29769 | -2/Research | Spotted Executioner 29774 | -2/Research | Destroyed Executioner 29795 | -2/Research | Destroyed 7 combat bots 29860 | -2/Research | Identified exit to Quarantine 29862 | -2/Research | Lost 3 allies 30057 | -2/Research | Entered Quarantine 30137 | -2/Quarantine | Garrison activated, responded to threat 30197 | -2/Quarantine | Lost 5 allies 30251 | -2/Quarantine | Found Alien Artifact 30408 | -2/Quarantine | Build established: Hacker-Tank 30597 | -2/Quarantine | System corruption reached 10% 30713 | -2/Quarantine | Scanned by Researcher 30737 | -2/Quarantine | Found Alien Artifact 30737 | -2/Quarantine | Identified Core Reset Matrix 30737 | -2/Quarantine | Identified Subatomic Replicator 30737 | -2/Quarantine | Used Core Reset Matrix 30741 | -2/Quarantine | Detected hypermatrix surge 30741 | -2/Quarantine | Sensed 2 artifacts in vicinity 30777 | -2/Quarantine | Central database locked down 30923 | -2/Quarantine | Cryocooling Duct disabled 30925 | -2/Quarantine | Cryocooling Duct disabled 30938 | -2/Quarantine | Ambient heat levels rising (+20) 30938 | -2/Quarantine | Non-combat units ordered to evacuate 30940 | -2/Quarantine | Ambient heat levels rising (+20) 30940 | -2/Quarantine | Combat units ordered to evacuate 31040 | -2/Quarantine | Quarantine Guard activated 31238 | -2/Quarantine | Spotted Quarantine Guard 31266 | -2/Quarantine | Destroyed Quarantine Guard 31531 | -2/Quarantine | Spotted Quarantine Guard 31548 | -2/Quarantine | Destroyed Quarantine Guard 31604 | -2/Quarantine | Spotted Quarantine Guard 31609 | -2/Quarantine | Destroyed Quarantine Guard 31703 | -2/Quarantine | Spotted Quarantine Guard 31838 | -2/Quarantine | Build established: Tank 31894 | -2/Quarantine | Destroyed Quarantine Guard 31956 | -2/Quarantine | Spotted Quarantine Guard 31968 | -2/Quarantine | Destroyed Quarantine Guard 31989 | -2/Quarantine | Spotted Quarantine Guard 32021 | -2/Quarantine | Destroyed Quarantine Guard 32031 | -2/Quarantine | Discovered exit to Access (range 8) 32031 | -2/Quarantine | Spotted Quarantine Guard 32066 | -2/Quarantine | Destroyed Quarantine Guard 32179 | -2/Quarantine | Spotted Fortress 32289 | -2/Quarantine | Discovered new exit (range 5) 32289 | -2/Quarantine | Discovered new exit (range 6) 32289 | -2/Quarantine | Spotted Quarantine Guard 32289 | -2/Quarantine | Spotted Quarantine Guard 32294 | -2/Quarantine | Identified exit to Section 7 32295 | -2/Quarantine | Entered Section 7 32296 | -2/Section 7 | Detected hypermatrix surge 32296 | -2/Section 7 | Sensed 24 artifacts in vicinity 32306 | -2/Section 7 | Found Integrity Redistributor 32344 | -2/Section 7 | Found Core Regenerator 32416 | -2/Section 7 | Found Prototype Device 32464 | -2/Section 7 | Identified Exp. Shock Absorption System 32570 | -2/Section 7 | Spotted S7 Guard 32587 | -2/Section 7 | Found Integrated Thermoelectric Network 32587 | -2/Section 7 | Installed Integrated Thermoelectric Network, gained heat-energy exchange potential 32611 | -2/Section 7 | Build established: Machinist-Tank 32744 | -2/Section 7 | Destroyed S7 Guard 33257 | -2/Section 7 | Build established: Alien-Bomber 33257 | -2/Section 7 | Discovered exit to Access (range 25) 33344 | -2/Section 7 | Destroyed Executioner 33344 | -2/Section 7 | Destroyed Executioner 33391 | -2/Section 7 | Spotted Alpha 7 33398 | -2/Section 7 | Spotted Alpha 7 33402 | -2/Section 7 | Destroyed Alpha 7 33410 | -2/Section 7 | Destroyed Alpha 7 33418 | -2/Section 7 | Used Subatomic Replicator to replicate Integrity Redistributor 33419 | -2/Section 7 | Used Integrity Redistributor, redistributed integrity from core (-360) 33496 | -2/Section 7 | Found Hpw. Transdimensional Reconstructor 33685 | -2/Section 7 | Build established: Machinist-Skirmisher 33884 | -2/Section 7 | Spotted B-99 Colossus 33984 | -2/Section 7 | Found LRC Insulator 33984 | -2/Section 7 | Installed LRC Insulator, 1 resistance modified: EM +25% 33993 | -2/Section 7 | Found LRC Matter Compressor 33993 | -2/Section 7 | Installed LRC Matter Compressor, increased matter storage capacity (+125) 34324 | -2/Section 7 | Build established: Alien-Bomber 34495 | -2/Section 7 | Entered Access 34495 | -1/Access | Evolved 2 slots: Utility x2 34712 | -1/Access | Lost 4 allies 35010 | -1/Access | Destroyed 8 combat bots 35230 | -1/Access | Found Prototype Launcher 35234 | -1/Access | Found Corrupted Prototype Launcher 35241 | -1/Access | Found Corrupted Prototype Processor 35252 | -1/Access | Identified Exp. Armor Integrity Analyzer 35264 | -1/Access | Identified Enh. Gamma Bomb Array 35510 | -1/Access | Garrison activated, responded to threat 35584 | -1/Access | Destroyed 8 combat bots 35592 | -1/Access | Discovered new exit (range 28) 35706 | -1/Access | Identified exit to Command 35708 | -1/Access | Entered Command 36090 | -1/Command | Spotted Combat Programmer 36092 | -1/Command | Spotted Combat Programmer 36118 | -1/Command | Destroyed Combat Programmer 36120 | -1/Command | Destroyed Combat Programmer 36121 | -1/Command | Spotted M Guard 36126 | -1/Command | Spotted M Guard 36133 | -1/Command | Destroyed M Guard 36141 | -1/Command | Destroyed M Guard 36141 | -1/Command | All MAIN.C guards destroyed 36160 | -1/Command | Found Corrupted Prototype Device 36162 | -1/Command | Identified AEGIS Remote Shield 36177 | -1/Command | Found Corrupted Prototype Protection 36198 | -1/Command | Identified Hvy. Regenerative Plating 36359 | -1/Command | System corruption reached 10% 36369 | -1/Command | Met MAIN.C 36374 | -1/Command | 0b10 Conduit disabled 36391 | -1/Command | Destroyed MAIN.C Shell 36394 | -1/Command | MAIN.C activated Command garrisons 36457 | -1/Command | Destroyed MAIN.C 36477 | -1/Command | Discovered new exit (range 46) 36477 | -1/Command | Discovered new exit (range 103) 36477 | -1/Command | Extracted map data and part IDs from MAIN.C's data core 36563 | -1/Command | Found Exp. System Purifier 36821 | -1/Command | Found Vortex Chain Reactor 37853 | -1/Command | Build established: Alien-Gunner 38408 | -1/Command | Found Exp. Core Analyzer 38532 | -1/Command | Phase Generator disabled 39042 | -1/Command | Build established: Scavenger-Gunner 39413 | -1/Command | Found Zero-point Reactor 40128 | -1/Command | Build established: Alien-Gunner 40667 | -1/Command | Used Integrity Redistributor, redistributed integrity from core (-173) 40670 | -1/Command | Used Core Regenerator, restored core integrity (+362) 40817 | -1/Command | Found Omega Cannon 40951 | -1/Command | Build established: Scavenger-Tank 41868 | -1/Command | Build established: Alien-Bomber 41940 | -1/Command | Found Exp. Terrain Scan Processor 41976 | -1/Command | Warped through subspace to slip node 41976 | -1/Command | Discovered new exit (range 4) 41985 | -1/Command | Entered Access_0 41986 | -1/Access_0 | Sensed 1 artifact in vicinity 41987 | -1/Access_0 | Met Architect 41992 | -1/Access_0 | Architect warped through subspace 41994 | -1/Access_0 | Destroyed A8 42054 | -1/Access_0 | Architect warped through subspace 42111 | -1/Access_0 | Architect warped through subspace 42164 | -1/Access_0 | Architect warped through subspace 42203 | -1/Access_0 | Destroyed 8 combat bots 42209 | -1/Access_0 | Architect warped through subspace 42249 | -1/Access_0 | Architect warped through subspace 42273 | -1/Access_0 | Subspace Access Node disabled 42283 | -1/Access_0 | Architect warped through subspace 42322 | -1/Access_0 | Architect warped through subspace 42364 | -1/Access_0 | Architect warped through subspace 42413 | -1/Access_0 | Architect warped through subspace 42424 | -1/Access_0 | A6 warped into view 42426 | -1/Access_0 | Destroyed A6 42433 | -1/Access_0 | Subspace Access Node disabled 42464 | -1/Access_0 | Architect warped through subspace 42496 | -1/Access_0 | Subspace Access Node disabled 42568 | -1/Access_0 | Architect warped through subspace 42622 | -1/Access_0 | Architect warped through subspace 42679 | -1/Access_0 | Architect warped through subspace 42749 | -1/Access_0 | Destroyed A2 42825 | -1/Access_0 | Singularity Gate disabled 42858 | -1/Access_0 | Architect warped through subspace 42878 | -1/Access_0 | Found Exp. Phase Shifter 42899 | -1/Access_0 | A5 warped into view 42907 | -1/Access_0 | Destroyed A5 42912 | -1/Access_0 | Architect warped through subspace 42965 | -1/Access_0 | Architect warped through subspace 42995 | -1/Access_0 | Lost 3 parts (1p1u1w) 43012 | -1/Access_0 | Architect warped through subspace 43051 | -1/Access_0 | Architect warped through subspace 43132 | -1/Access_0 | Lost 5 parts (5u) 43161 | -1/Access_0 | Core integrity fell below 50% 43214 | -1/Access_0 | Subspace Access Node disabled 43237 | -1/Access_0 | Core integrity fell below 20% 43251 | -1/Access_0 | Destroyed by Enhanced Grunt with Neutron Cannon Last Messages --------------- 43226_ Exp. Hardlight Generator destroyed. 43227_ Omega Cannon destroyed. 43229_ Enhanced Grunt destroyed. 43229_ Architect knocked back. 43229_ Enhanced Grunt knocked back. 43230_ Activated siege mode. 43232_ Architect knocked back. 43233_ Exp. Biometal Heavy Treads destroyed. 43233_ Quantum Shear penetrates Earth. 43235_ Architect suffers critical hit (Blast). 43235_ Destroyed Prototype Hackware. 43236_ Penetrated by Quantum Shear. 43237_ Enh. Hardcell Cannon destroyed. 43238_ Graviton Cannon destroyed. 43238_ Penetrated by Quantum Shear. 43238_ AEGIS Remote Shield destroyed. 43238_ Penetrated by Quantum Shear. 43238_ Dropped Huge Storage Unit. 43242_ Quantum Shear penetrates Wall. 43248_ Slammed into Enhanced Grunt. Map ----- +----------------------------------------------------+ | ###### ##### ################# | | #### ## #### ################# | | ## ### ###### "# ############## | | ##### ###### ######## " ############# | | ##### ################ """""############ | | ##### ################ ## | | #### ############## ## | | ### ############## ## | | ## ############## # | | ############ ## ######""####### | | ######## ############ #### | | ####### ############# ##" """ | | "######## ############ #### ## "&" # | | "#"##### ########## ###### ##" " " # | | " " #### ###### ## """ # | | # #### ##### ###### # | | #"" "#### ### ####### | | ##" "##### #### ######## | | #### ############ ############# | | #### "############ ######### ### # | | #### ""############ ######### ####### # | | ##### " ############ ######## ######### | | ####""! " ############### ################### | | ####"" "################ ################### | | # "###############; ################### ### | | ################@########### ####### ### | | ################ ########## ##### ### | | "################# ######### #### ### | | ##% " ############### ######### # ## | | ## % ############### g ######## ## ## | | ## ###?############# g ####### ### ## | | # % ########## ##;; ###### ## ### | | #" %% " ########## ##;g ###### ##### | | #" % " ########## ##### ##### | | # " "## #### ######## #### | | ## % " """ #### ###### ########### #### | | ?## """" ### ####??##? ###### ##?## ?### | | ?## !! ####??????##???# ##?? ????? | | ## ! ## ##?#????????????????????? | | #### """""" ""### #???????????????????????? | | #### " """ ""##### ##???????????????????????? | | ## "## """ """#???###????????????????????????? | | ### #### """######???#?#??????????????????????? | | ?## ####### #???????#?????????????????????????? | | ??##"?#?#??####????#?#??????????????????????????? | | ???##?#??##??????? #????????????????????????????? | | ?? ??#???#?#?????????????????????????????????????? | | ???????##????????????????????????????????????????? | | ?????????????????????????????????????????????????? | | ?????????????????????????????????????????????????? | +----------------------------------------------------+ Best States ------------- Heat Dissipation 110 Coolant Potential 120 Energy Generation 70 Energy Capacity 700 Matter Stores 491 Matter Capacity 925 Sight Range 16 Robot Scan Range 20 Terrain Scan Range 30 Terrain Scan Density 1010 ECM Strength 2 Jamming Range 22 Power Amplification 30 Armor Coverage 1200 Resistance: KI 40 Resistance: TH 50 Resistance: EX 75 Resistance: EM 75 Utility Shielding 90 Point Defense Rating 240 Phase Shifting 20 Evasion (%) 70 Targeting Accuracy 12 Launcher Accuracy 40 Core Analysis 12 Armor Integrity Analysis 50 Recoil Reduction 6 Energy Filtering 75 Particle Charging 40 Offensive Hacking 72 Defensive Hacking 14 Authchip Count 4 Item Schematics ----------------- Exp. Thermal Shield | -2/Quarantine | Archive Adv. Gravity Neutralizer | -2/Quarantine | Archive Enh. Biometal Leg | -2/Quarantine | Archive Cld. Linear Gravjet | -2/Quarantine | Archive Diametric Drive | -2/Quarantine | Archive Thermal Defense Suite | -2/Quarantine | Archive Prc. Phase Gun | -2/Quarantine | Archive Cld. Q-thruster | -2/Quarantine | Archive Lgt. Antimatter Cannon | -2/Quarantine | Archive Robot Schematics ------------------ A-15 Conveyor | -2/Quarantine | Archive R-10 Processor | -2/Quarantine | Archive H-88 Terminator | -2/Quarantine | Archive A-02 Transporter | -2/Quarantine | Archive Fabricated ------------ P-60 Hacker | x2 | -7/Factory | Preloaded Hacking Suite | x1 | -7/Factory | Authchip Hacking Suite | x1 | -7/Factory Adv. Particle Charger | x2 | -7/Factory | Preloaded Lrn. Sensor Array | x2 | -5/Factory Exp. Hacking Suite | x1 | -4/Factory | Authchip Gamma Bomb Array | x1 | -4/Factory Gamma Bomb Array | x1 | -4/Factory | Authchip Mni. Smartbomb Launcher | x1 | -4/Factory Exp. Signal Interpreter | x1 | -4/Factory | Authchip Exp. Terrain Scan Processor | x1 | -4/Factory | Authchip Exp. Utility Shielding | x1 | -4/Factory | Authchip Adv. EM Shield | x1 | -4/Factory | Authchip Exp. Terrain Scanner | x1 | -4/Factory | Authchip Prc. Energy Filter | x1 | -4/Factory | Authchip Exp. Utility Shielding | x1 | -3/Research | Authchip Exp. Targeting Computer | x1 | -3/Research | Authchip Hvy. Reactive Plating | x1 | -3/Testing | Authchip Imp. Particle Accelerator | x1 | -3/Testing | Authchip Repaired ---------- Hvy. Ion Engine | 19% | -9/Materials Adv. Visual Processing Unit | 54% | -9/Materials Hvy. Ion Engine | 18% | -8/Materials Exp. Sensor Array | 62% | -7/Factory | Broken Hvy. Shock Bomb Launcher | 12% | -7/Factory | Broken Aerolev Unit | 22% | -6/Factory Imp. Gravmag System | 6% | -5/Factory Adv. EMP Blaster | 53% | -5/Factory Adv. KE Penetrator | 61% | -5/Factory Gravmag System | 42% | -5/Factory Fusion Bomb Launcher | 15% | -5/Factory | Broken Graphene Brace | 26% | -4/Factory Prc. Energy Filter | 20% | -4/Factory Centrium Leg | 62% | -4/Factory | Broken Hcp. Storage Unit | 64% | -4/Factory Cmb. Linear Gravjet | 7% | -4/Factory Cmb. Linear Gravjet | 55% | -4/Factory Lrn. Sensor Array | 48% | -4/Factory Exp. Utility Shielding | 24% | -3/Research Enh. Biometal Leg | 39% | -3/Research Enh. Biometal Leg | 29% | -3/Research Mak. Sensor Array | 48% | -3/Research Hvy. Neutron Cannon | 40% | -3/Research Helical Railgun | 44% | -3/Research Enh. Biometal Leg | 36% | -3/Testing Exp. Utility Shielding | 15% | -3/Testing Alien Tech Used ----------------- Integrated Dissipator Transdimensional Reconstructor Core Reset Matrix Integrated Thermoelectric Network Subatomic Replicator Integrity Redistributor LRC Insulator LRC Matter Compressor Core Regenerator High-powered Transdimensional Reconstructor Achievements -------------- Behind The Curtain Challenges ------------ None Game ------ Seed CobblerCoordinationShifter Manual? 0 Play Time 10:36:03 Cumulative 453.6 hours Start 2025.06.25 @ 03:14:57 End 2025.06.28 @ 01:27:20 Sessions 9 Manual Loads 0 Difficulty Rogue Special Mode None Game No. 217 Rogue 217 Adventurer 0 Explorer 0 Win Type - Total 5 Types 5/0/0/0/0/0/0/0/0/0 Lore% 64 Gallery% 70 Achievement% 64 Wizard Run 0 Options --------- Layout 0 ASCII 0 Keyboard 1 Movement Vi Keybinds 0 Fullscreen 2 Font 18/SmallcapsGlow Map View 76x50 Zoom Use 0% Tactical HUD 1 Map Filters NONE Filters NONE Steam 1 RUN: 8e5c2049-0460-4e77-91a8-664cf464d1db